Workbook

Sheet F-22 CATAL (2) (hidden)
G1: FORMATO N0. 22
B3: COMISION DE VIVIENDA | C3: CATÁLOGO DE CONCEPTOS, CANTIDADES DE OBRA, PRECIOS UNITARIOS, IMPORTES PARCIALES Y TOTALES DE LA PROPUESTA
B4: DEL ESTADO DE SONORA
C5: FECHA DE PRESENTACIÓN DE LA PROPUESTA:
A6: LICITACIÓN No.:
A7: CONSTRUCCIÓN DE 1 (UNA) VIVIENDA DE 40.01 M2, A BASE DE LOSA DE CIMENTACIÓN, MUROS DE BLOCK, TECHO DE VIGUETA Y BOVEDILLA, INSTALACIONES ELÉCTRICAS, HIDRÁULICAS Y SANITARIAS. EN EL MUNICIPIO DE __________ SONORA.
D10: CANTIDADES DE OBRA, PRECIOS UNITARIOS E IMPORTES
A11: CLAVE | B11: DESCRIPCIÓN | C11: UNIDAD | D11: CANTIDAD | E11: P. UNIT. CON NUMERO | F11: PRECIO UNIT. CON LETRA | G11: IMPORTE | I11: 1 | J11: 35
A13: LOSA DE CIMENTACIÓN | D13: PESOS 00/100 M.N.**
A14: PC-01 | B14: Limpia, trazo y nivelación. | C14: M2 | D14: =+K14 -> 40.01 | E14: =+#REF! ->  | G14: =D14*E14 ->  | I14: 40.01 | J14: 44.56 | K14: =+I14*$I$11 -> 40.01
A15: PC-02 | B15: Excavación a mano en terreno investigado en obra, cualquier profundidad, incluye afine de taludes y acarreo fuera de la obra de material no utilizable. | C15: M3 | D15: =+K15 -> 0.88 | E15: =+#REF! ->  | G15: =D15*E15 ->  | I15: 0.88 | J15: 9.88 | K15: =+I15*$I$11 -> 0.88
A16: PC-05 | B16: Losa de Cimentación de 9 cm de espesor, a base de concreto F'c=200 kg/cm2; t.m.a. 3/4" hecho en obra; reforzado con malla electrosoldada 6x6-10/10, plantilla de 5 cm de espesor a base de concreto F'c=100 kg/cm2 t.m.a. 3/4", dentellón perimetral e intermedio a base de armex de 15x20 cm; anclaje a base de bastones con varilla 3/8" @ 30 con 40 cm de largo donde se indique en los planos de proyecto, acabado pulido, incluye: fumigacion antitermitas con fumigante aditivo adherente termidor o similar, curado, vibrado, colado y todo lo necesario para su correcta ejecución. | C16: M2 | D16: =+K16 -> 40.01 | E16: =+#REF! ->  | G16: =D16*E16 ->  | I16: 40.01 | J16: 8.91 | K16: =+I16*$I$11 -> 40.01
A17: PC-06 | B17: Impermeabilización a base de producto epóxico color negro aplicado sobre los 12 cm del desplante y 20 cm del espesor de la losa y dentellón perimetral en todo el perímetro, incluye: materiales, mano de obra, herramienta y equipo necesarios para su correcta ejecución. | C17: Ml | D17: =+K17 -> 23.12 | E17: =+#REF! ->  | G17: =D17*E17 ->  | I17: 23.12 | J17: 8.91 | K17: =+I17*$I$11 -> 23.12
A18: PC-07 | B18: Afine, nivelacion y compactacion de terreno natural para desplante de losa de cimentacio, incluye todo lo necesario para su correcta ejecucion. | C18: M2 | D18: =+K18 -> 40.01 | E18: =+#REF! ->  | G18: =D18*E18 ->  | I18: 40.01 | J18: 44.56 | K18: =+I18*$I$11 -> 40.01
D19: LOSA DE CIMENTACIÓN | G19: =+SUM(G14:H18) -> 
A22: MUROS
A23: MC-01 | B23: Construcción de muro de block de 12x20x40 cm junteado con mortero cemento arena proporción 1:4, incluye; Muro de enrase, plomeado, relleno de huecos en contorno de ventanas a base de concreto F´c= 150 kg/cm2 hecho en obra t.m.a. 3/4", materiales, mano de obra, herramienta, equipo, deberá quedar aparente por ambas caras. | C23: M2 | D23: =+K23 -> 74.01 | E23: =+#REF! ->  | G23: =D23*E23 ->  | I23: 74.01 | J23: 79.68 | K23: =+I23*$I$11 -> 74.01
A24: MC-02 | B24: Castillo de concreto F´c=150 kg/cm2 hecho en obra t.m.a. 3/4", 12x12 cm de sección, armado con armex 12x12-4; incluye: cimbra aparente y descimbra; fabricación, colado y curado del concreto; materiales y mano de obra, deberá de quedar con acabado final aparente. | C24: ML | D24: =+K24 -> 43.46 | E24: =+#REF! ->  | G24: =D24*E24 ->  | I24: 43.46 | J24: 43.46 | K24: =+I24*$I$11 -> 43.46
A25: MC-03 | B25: Cadena de cerramiento de concreto F´c=150 kg/cm2 hecho en obra t.m.a. 3/4", 12x20 cm de sección, armada con armex 12X20-4; incluye: cimbra aparente y descimbra; fabricación, colado y curado del concreto; materiales y mano de obra, deberá de quedar con acabado final aparente. | C25: ML | D25: =+K25 -> 37.85 | E25: =+#REF! ->  | G25: =D25*E25 ->  | I25: 37.85 | J25: 40.16 | K25: =+I25*$I$11 -> 37.85
D26: MUROS | G26: =+SUM(G23:H25) -> 
A29: TECHO
A30: CU-01 | B30: Losa aligerada de 15 cm de espesor, a base de bovedilla de poliestireno y vigueta de alma abierta con armadura de acero diseño 10-36 de la marca deacero o similar, con patín de 12 cm de ancho por 5 cm de peralte, colado de capa de compresión de 4 cm con concreto F'c=200 kg/cm2, t.m.a. 3/4", reforzado malla electrosoldada de 6x6-10/10, el concepto incluye: afine de la superficie superior con acabado semipulido para recibir impermeabilización, cimbra y descimbraaparente, volado de concreto armado de 0.19x0.10m, colado, vibrado, curado y todo lo necesario para su correcta ejecución. | C30: M2 | D30: =+K30 -> 41.36 | E30: =+#REF! ->  | G30: =D30*E30 ->  | I30: 41.36 | J30: 46.07 | K30: =+I30*$I$11 -> 41.36
A31: CU-02 | B31: Impermeabilización de losa de azotea a base de impermeabilizante elastomerico marca termoteck o similar de 3 años de garantía,a razón de 1 m2/lt, y tela de refuerzo sencillo, incluye limpieza y preparación de la superficie. | C31: M2 | D31: =+K31 -> 41.36 | E31: =+#REF! ->  | G31: =D31*E31 ->  | I31: 41.36 | J31: 46.07 | K31: =+I31*$I$11 -> 41.36
D32: TECHO | G32: =SUM(G30:H31) -> 
A35: ACABADOS
A36: AC-02 | B36: Sardinel de 10x10 cm a base de concreto hidráulico de F'c=150 kg/cm2 t.m.a. 3/4". Incluye: Herramienta, mano de obra y todo lo necesario para su correcta ejecución. | C36: Ml | D36: =+K36 -> 1.92 | E36: =+#REF! ->  | G36: =D36*E36 ->  | I36: 1.92 | K36: =+I36*$I$11 -> 1.92
A37: AC-03 | B37: Aplanado de yeso en plafones, de 1.5 cm de espesor promedio, a plomo y regla, acabado pulido, reforzada con malla pollera en toda el área incluye: perfilado de aristas y remate en columnas, trabes y muros. | C37: M2 | D37: =+K37 -> 35.6 | E37: =+#REF! ->  | G37: =D37*E37 ->  | I37: 35.6 | K37: =+I37*$I$11 -> 35.6
A38: AC-04 | B38: Suministro y colocación de azulejo de 20x30cm de color blanco de la marca porcelanite o similar asentado con cemento crest o similar, boquilla de 2 mm a base de junta crest anti-hongo o similar. Incluye: Herramienta, mano de obra y todo lo necesario para su correcta ejecución. | C38: M2 | D38: =+K38 -> 3.8 | E38: =+#REF! ->  | G38: =D38*E38 ->  | I38: 3.8 | K38: =+I38*$I$11 -> 3.8
A39: AC-05 | B39: Suministro y colocación de piso antiderrapante de 20x20cm de color blanco de la marca porcelanite o similar asentado con cemento crest o similar, boquilla de 2 mm a base de junta crest anti-hongo o similar. Incluye: Herramienta, mano de obra y todo lo necesario para su correcta ejecución. | C39: M2 | D39: =+K39 -> 3.94 | E39: =+#REF! ->  | G39: =D39*E39 ->  | I39: 3.94 | K39: =+I39*$I$11 -> 3.94
A40: AC-09 | B40: Colocación de placa de cerámica en medidas de 20x20 cm, con cemento crest, en muro de fachada. Incluye; Material, herramienta, mano de obra y todo lo necesario para su correcta ejecución. | C40: Pza | D40: =+K40 -> 1 | E40: =+#REF! ->  | G40: =D40*E40 ->  | I40: 1 | K40: =+I40*$I$11 -> 1
D41: ACABADOS | G41: =+SUM(G36:H40) -> 
A44: PUERTAS Y VENTANAS
A45: PV-01 | B45: Suministro e instalación de puerta tipo multypanel 0.90x2.06m con marco metálico de 0.96x2.10m fabricado a base de perfil tubular M-225., chapa tipo bola con llave para exterior modelo MH52T3 marca fanal o similar acabado en latón brillante para exterior, dos bisagras de 3", pintura esmalte anticorrosivo color blanco en el marco metálico, el concepto incluye perfilado del hueco previo a su colocación con mortero cemento-arena 1:4. Incluye: Herramienta, mano de obra y todo lo necesario para su correcta ejecución. | C45: Pza | D45: =+K45 -> 1 | E45: =+#REF! ->  | G45: =D45*E45 ->  | I45: 1 | J45: 1 | K45: =+I45*$I$11 -> 1
A46: PV-02 | B46: Suministro e instalación de puerta de tambor 0.80x2.06m con marco metálico de 0.86x2.10m fabricado a base de perfil tubular M-225., chapa tipo bola para interior marca fanal o similar, dos bisagras de 3", pintura esmalte anticorrosivo color blanco en el marco metálico, el concepto incluye perfilado del hueco previo a su colocación con mortero cemento-arena 1:4. Incluye: Herramienta, mano de obra y todo lo necesario para su correcta ejecución. | C46: Pza | D46: 2 | E46: =+#REF! ->  | I46: 2 | J46: 2 | K46: 2
A47: PV-03 | B47: Suministro e instalación de puerta de tambor 0.70x2.06m con marco metálico de 0.76x2.10m fabricado a base de perfil tubular M-225., chapa tipo bola para interior marca fanal o similar, dos bisagras de 3", pintura esmalte anticorrosivo color blanco en el marco metálico, el concepto incluye perfilado del hueco previo a su colocación con mortero cemento-arena 1:4. Incluye: Herramienta, mano de obra y todo lo necesario para su correcta ejecución. | C47: Pza | D47: 1 | E47: =+#REF! ->  | I47: 1 | J47: 1 | K47: 1
A48: PV-04 | B48: Suministro y colocación de ventana corrediza de 0.83x1.05m a base de perfil de aluminio anodizado natural de 1 1/2" con cristal claro de 3mm con un fijo lateral y un corredizo, incluye perfilado del hueco, previo a su colocación a base de mortero cemento-arena proporción 1:4. Incluye: Herramienta, mano de obra y todo lo necesario para su correcta ejecución. | C48: Pza | D48: 3 | E48: =+#REF! ->  | I48: 3 | J48: 3 | K48: 3
A49: PV-05 | B49: Suministro y colocación de ventana corrediza de 0.60x0.40m a base de perfil de aluminio anodizado natural de 1 1/2" con cristal claro de 3mm con un fijo lateral y un corredizo, incluye perfilado del hueco previo a su colocación a base de mortero cemento-arena proporción 1:4. Incluye: Herramienta, mano de obra y todo lo necesario para su correcta ejecución. | C49: Pza | D49: 1 | E49: =+#REF! ->  | I49: 1 | J49: 1 | K49: 1
A50: PV-06 | B50: Suministro e instalación de puerta tipo multypanel 0.80x2.06m con marco metálico de 0.86x2.10m fabricado a base de perfil tubular M-225., chapa tipo bola con llave para exterior modelo MH52T3 marca fanal o similar acabado en latón brillante para exterior, dos bisagras de 3", pintura esmalte anticorrosivo color blanco en el marco metálico, el concepto incluye perfilado del hueco previo a su colocación con mortero cemento-arena 1:4. Incluye: Herramienta, mano de obra y todo lo necesario para su correcta ejecución. | C50: Pza | D50: 1 | E50: =+#REF! ->  | I50: 1 | J50: 1 | K50: 1
D51: PUERTAS Y VENTANAS | G51: =+SUM(G45:H50) ->  | K51: 0
A54: INSTALACIONES ELÉCTRICAS
A55: IE-01 | B55: Suministro y colocación de centro de carga de dos circuitos con una pieza de interruptor sencillo de 1x30 amperes, tubería galvanizada conduit pared delgada de 3/4", el concepto incluye ranurado, resanado con mortero cemento-arena 1:4, prueba del correcto funcionamiento de las instalaciones y todo lo necesario para su correcto funcionamiento. | C55: Pza | D55: =+K55 -> 1 | E55: =+#REF! ->  | G55: =D55*E55 ->  | I55: 1 | J55: 1 | K55: =+I55*$I$11 -> 1
A56: IE-02 | B56: Salida eléctrica para tomacorriente, incluye; Contacto doble, tapa, poliducto eléctrico, cableado, ranurado, sujeción de poliducto, mano de obra y equipo. | C56: Sal | D56: 9 | E56: =+#REF! ->  | I56: 9 | J56: 9 | K56: 9
A57: IE-03 | B57: Salida eléctrica para apagador sencillo, incluye: tapa de una via, poliducto eléctrico naranja reforzado de 1/2", cableado con cable thw #12, ranurado, resanado con mortero cemento-arena 1:4, sujeción de poliducto, mano de obra y equipo. | C57: Sal | D57: 3 | E57: =+#REF! ->  | I57: 3 | J57: 3 | K57: 3
A58: IE-04 | B58: Salida eléctrica para apagador doble, incluye; tapa de dos vías, poliducto eléctrico naranja reforzado de 1/2", cableado con cable thw #12, ranurado, resanado con mortero cemento-arena 1:4, sujeción de poliducto, mano de obra y equipo. | C58: Sal | D58: 2 | E58: =+#REF! ->  | I58: 2 | J58: 2 | K58: 2
A59: IE-05 | B59: Salida eléctrica para lámpara, incluye; cableado con cable thw #12, caja octogonal de 4", con poliducto naranja reforzado de 1/2", cableado, ranurado, resanado con mortero cemento arena 1:4, sujeción de poliducto, mano de obra y equipo. | C59: Sal | D59: 7 | E59: =+#REF! ->  | I59: 7 | J59: 7 | K59: 7
A60: IE-06 | B60: Suministro e instalación de foco fluorescente espiral 23 w. De luz fria con 100 W de iluminacion según proyecto, incluye: la roseta de porcelana de 4" y todo lo necesario para su correcta instalación. | C60: Pza | D60: 7 | E60: =+#REF! ->  | I60: 7 | J60: 7 | K60: 7
D61: INSTALACIONES ELÉCTRICAS | G61: =+SUM(G55:H60) -> 
A64: INSTALACIONES HIDRÁULICAS Y SANITARIAS
A65: IHS-01 | B65: Salidas para instalación sanitaria de 1 1/2", 2" y 4" para ventila, lavabo, sanitario, tarja y regadera, tubería de pvc, conexiones, pegamento, ranurado, resanado con mortero cemento-arena 1:4, pendiente, materiales, mano de obra, herramienta y equipo. | C65: Sal | D65: =+K65 -> 5 | E65: =+#REF! ->  | G65: =D65*E65 ->  | I65: 5 | J65: 5 | K65: =+I65*$I$11 -> 5
A66: IHS-02 | B66: Salidas para instalación hidráulica para regadera agua fría y caliente, lavabo, sanitario, tarja o zinc, con tubería cpvc de 1/2" marca duralon o similar, el concepto incluye: limpieza, conexiones, ranurado, pendiente, materiales, mano de obra, herramienta, equipo, resanado con mortero cemento-arena 1:4, prueba del correcto funcionamiento de las instalaciones y todo lo necesario para su correcto funcionamiento. | C66: Sal | D66: 5 | E66: =+#REF! ->  | I66: 5 | J66: 5 | K66: 5
A67: IHS-03 | B67: Suministro e instalación de sanitario marca lamosa o similar línea económica en color blanco, incluye asiento, pijas, cuello de cera, manguera flexible, llave cromada de 1/2". | C67: Pza | D67: 1 | E67: =+#REF! ->  | I67: 1 | J67: 1 | K67: 1
A68: IHS-04 | B68: Suministro e instalación de lavabo marca lamosa o similar línea económica en color blanco, incluye: Llave mezcladora marca helvex o similar línea económica, patas, soportes, manguera flexible, llave cromada de 1/2", cespol bote. | C68: Pza | D68: 1 | E68: =+#REF! ->  | I68: 1 | J68: 1 | K68: 1
A69: IHS-05 | B69: Suministro e instalación de regadera línea económica incluye brazo y chapetón. | C69: Pza | D69: 1 | E69: =+#REF! ->  | I69: 1 | J69: 1 | K69: 1
A70: IHS-06 | B70: Construcción de registro sanitario de 46x45cm de medida interna, a base de ladrillo recocido común de la región de 7x14x28 cm, junteado con mortero cal-arena 1:5 + 10% de cemento, base y tapa a base de concreto F'c=150 kg/cm2 con t.m.a. 3/4" reforzado con malla electrosoldada 6x6-10/10 el concepto incluye: enjarre interior con mortero cemento-arena 1:3, fabricación y colocación de dos jaladeras para la tapa a base de alambrón de 1/4", con pases a base de poliducto de 1/2". y todo lo necesario para su correcta ejecución. | C70: Pza | D70: 2 | E70: =+#REF! ->  | I70: 2 | J70: 1 | K70: 2
A71: IHS-07 | B71: Suministro e instalación de tinaco de 600 lt de la marca rotoplas o similar con el sistema de 3 capas para garantizar una vida útil de 35 años, con todos los accesorios como jarro de aire, flotador #5, válvula de llenado ¾", multiconector con válvula de esfera, tuerca unión y válvula check, incluye base para nivelar tinaco (detalle plano), la alimentación hidráulica por medio de tubería cpvc de 1/2" y todo lo necesario para su correcto funcionamiento. | C71: Pza | D71: 1 | E71: =+#REF! ->  | I71: 1 | J71: 1 | K71: 1
A72: IHS-08 | B72: Suministro e instalación de lavadero doble de empotrar, el concepto incluye; firme de concreto sencillo, murete de block de 12x20x40 cm, la salida sanitaria con tubería pvc de 2" y la salida hidráulica con tubería cpvc de 1/2", llave de jardín de 1/2", resanado con mortero cemento-arena 1:4 y todo lo necesario para su correcto funcionamiento. | C72: Pza | D72: 1 | E72: =+#REF! ->  | I72: 1 | J72: 1 | K72: 1
D73: INSTALACIONES HIDRÁULICAS Y SANITARIAS | G73: =+SUM(G65:H72) -> 
A76: TOTAL DE PRESUPUESTO ** | D76: TOTAL DE PRESUPUESTO | G76: =+G73+G61+G51+G41+G32+G26+G19 -> 

Sheet OPUSCAT
A1: Capítulo | B1: - | D1: MONTAJE DE 137(CIENTO TREINTA Y SIETE) RECAMARA ADICIONALES DE 16.65 M2 URBANA A BASE DE MODULOS PREFABRICADOS , TECHO DE LAMINA GALVANIZADA E INSTALACIONES ELÉCTRICAS, EN VARIAS LOCALIDADES DE LOS MUNICIPIOS DE ALAMOS, BACUM, HUATABAMPO, MAGDALENA, MAZATAN, SAN MIGUEL DE HORCASITAS Y URES DEL ESTADO DE SONORA.
A2: Subcapítulo | B2: - | C2: PRE | D2: PRELIMINARES | E2: UD | F2: CANTIDAD | G2: PU | J2: =+datos!B4 -> 137
A3: Concepto | C3: PRE-01 | D3: TRAZO Y NIVELACIÓN DEL TERRENO ESTABLECIENDO EJES DE REFERENCIA CON ESTACAS DE ARILLA HILO NYLON Y CAL, MATERIAL, HERRAMIENTA Y MANO DE OBRA | E3: M2 | F3: =+J3 -> 2260.5 | I3: 16.5 | J3: =+I3*$J$2 -> 2260.5
A4: Concepto | C4: PRE-02 | D4: TRABAJOS DE EXCAVACION PERIMETRAL PARA ALOJAR ESTRUCTURA PREFABRICADA DE 0.30X0.15M AL PERIMETRO TOTAL DEL PREDIO, INCLUYE ADINE Y COMPACTACION DEL TERRENO | E4: ML | F4: =+J4 -> 2329 | I4: 17 | J4: =+I4*$J$2 -> 2329
A5: Concepto | C5: EST | D5: ESTRUCTURAL | F5: 0 | J5: 0
A6: Concepto | C6: EST-01 | D6: TRASLADO, HABILITADO Y COLOCACION DE PANALES DE CONCRETO Y PERLITA DE DIFERENTES DIMENCIONES, INCLUYE SOLDAR LAS PLACAS ENTRE SI, CARGA, DESCARGA CON GRUA ASI COMO LA COLOCACION EN SU SITIO, INCLUYE, GRUA PARA MANIOBRAS DE COLOCACION, SOLDADORA, PLANTA DE LUZ, PLOMEADO DE MUROS, MATERIAL, HERAMIENTA Y MANO DE OBRA | E6: PZA | F6: 137 | I6: 1 | J6: 137
A7: Subcapítulo | B7: - | C7: ALB | D7: ALBAÑILERIAS | F7: 0 | J7: 0
A8: Concepto | C8: ALB-01 | D8: RESANE DE JUNTAS FRIAS ENTRE PANALES A BASE DE MATERIAL CEMEX COLOR BLANCO MULTIPLAST O SIMILAR Y MALLLA GEOTEXTIL AUTOADERENTE DE 15CM EN TODA LA JUNTA, ACABADO FLOTEADO, INCLUYE MATERIAL, HERAMIENTA Y MANO DE OBRA | E8: ML | F8: 3356.5 | I8: 24.5 | J8: 3356.5
A9: Concepto | C9: ALB-02 | D9: RESANE DE GRIETAS EN LA SUPERFICIE DE MUROS, CON PRODUCTO CEMEX BLANCO MULTIPLAST O SIMILAR, ACBADO FLOTEADO, INCLUYE LAVADO DE LA SUPERFICIE, APLICACION DEL PRODUCTO ACABADO FLOTEADO COLOCADO CON LLANA MATERIAL, HERRAMIENTA Y MANO DE OBRA | E9: M2 | F9: 5493.7 | I9: 40.1 | J9: 5493.7
A10: Concepto | C10: ALB-03 | D10: SUMINISTRO Y COLOCACION DE SIKA FLEX 1A O SIMILAR EN JUNTAS FRIAS DE PISO DE CONCRETO, INCLUYE MATERIAL, HERRAMIENTA Y MANO DE OBRA | E10: ML | F10: 3466.1 | I10: 25.3 | J10: 3466.1
A11: Concepto | C11: ALB-04 | D11: SUMINISTRO Y APLICACIONDE PINTURA BLANCA EN TODA LA SUPERFICIE CALIDAD OSEL O SIMILAR , INCLUYE MATERIAL, HERAMIENTA Y MANO DE OBRA | E11: M2 | F11: 10987.4 | I11: 80.2 | J11: 10987.4
A12: Subcapítulo | B12: - | C12: ALB-05 | D12: ELABORACION DE REMATE PARA RESIVIR MURO Y ELABORADA A BASE DE MORTERO CEMNETO-ARENA 1:3 SECCION VARIABLE DE 0.10 A 0.05CM DE 0.07CM DE ANCHO INCLUYE CIMBRA, DESCIMBRA, MATERIAL, HERRAMIENTA Y MANO DE OBRA | E12: ML | F12: 1644 | I12: 12 | J12: 1644
A13: Concepto | C13: TECH | D13: TECHUMBRE | F13: 0 | J13: 0
A14: Concepto | C14: TECH-01 | D14: ELABORACION DE TECHUMBRE DE LAMINA GALVANIZADA R-72 DE 20FT, POLINERIA DE 4" EN TODA SU SECCION INCLUYE MATERIAL, HERAMIENTA Y MANO DE OBRA | E14: M2 | F14: 2712.6 | I14: 19.8 | J14: 2712.6
A15: Subcapítulo | B15: - | C15: ACA | D15: ACABADOS | F15: 0 | J15: 0
A16: Concepto | C16: ACA-01 | D16: COLOCACION DE PUERTA EN BASTIDOR EXISTENTE INCLUYE MONTAJE, HERRAMIENTA Y MANO DE OBRA | E16: PZA | F16: 137 | I16: 1 | J16: 137
A17: Concepto | C17: ELE | D17: ELECTRICO | F17: 0 | J17: 0
A18: Concepto | C18: ELE-01 | D18: COLOCACION DE ROSETA EXTERIOR PARA ALUMBRADO, INCLUYE MATERIAL, HERRAMIENTA , MANO DE OBRA, CABE ACLARAR QUE EN RELACION A LAS DEMAS INSTALACIONES ELECTRICAS COMO CABLEADO, TOMACORRIENTE, APAGADOR ESTOS YA ESTAN INTEGRADOS A LOS MUROS. | E18: PZA | F18: 137 | I18: 1 | J18: 137

Sheet PRE (hidden)
A1: Capítulo | B1: - | D1: TERMINACION DE 69(SESENTA Y NUEVE) RECAMARA ADICIONALES DE 16.65 M2 URBANA A BASE DE LOSA DE CIMENTACIÓN, MUROS DE BLOCK, TECHO DE VIGUETA E INSTALACIONES ELÉCTRICAS, EN LA OCALIDAD DE CUMPAS, SONORA. | H1: 4'447,198.86
A2: Subcapítulo | B2: - | C2: 1.- | D2: LOSA DE CIMENTACION | H2: 220616.74
A3: Concepto | C3: PC-01U | D3: Limpia, trazo y nivelación. | E3: M2 | F3: 299.7 | G3: 18.59 | H3: 5571.42
A4: Concepto | C4: PC-02U | D4: Excavación a mano en terreno investigado en obra, cualquier profundidad, incluye afine de taludes y acarreo fuera de la obra de material no utilizable. | E4: M3 | F4: 4.68 | G4: 181.77 | H4: 850.68
A5: Concepto | C5: PC-05U | D5: Losa de Cimentación de 9 cm de espesor, a base de concreto F'c=200 kg/cm2; t.m.a. 3/4" hecho en obra; reforzado con malla electrosoldada 6x6-10/10, plantilla de 5 cm de espesor a base de concreto F'c=100 kg/cm2 t.m.a. 3/4", dentellón perimetral e intermedio a base de armex de 15x20 cm; anclaje a base de bastones con varilla corrugada 3/8" grado 42 o 5/16 DA 6000 @ 30 con 40 cm de largo donde se indique en los planos de proyecto, acabado pulido, incluye: fumigacion antitermitas con fumigante aditivo adherente termidor o similar, curado, vibrado, colado y todo lo necesario para su correcta ejecución. | E5: M2 | F5: 299.7 | G5: 675.62 | H5: 202483.31
A6: Concepto | C6: PC-06U | D6: Impermeabilización a base de producto epóxico color negro aplicado sobre los 12 cm del desplante y 9 cm del espesor de la losa en todo el perímetro, incluye: materiales, mano de obra, herramienta y equipo necesarios para su correcta ejecución. | E6: Ml | F6: 251.64 | G6: 46.54 | H6: 11711.33
A7: Subcapítulo | B7: - | C7: 2.- | D7: ALBAÑILERIA | H7: 963619.41
A8: Concepto | C8: MC-01U | D8: Construcción de muro de block de 12x20x40 cm junteado con mortero cemento arena proporción 1:4, incluye; plomeado, relleno de huecos en contorno de ventanas a base de concreto F´c= 150 kg/cm2 hecho en obra t.m.a. 3/4", materiales, mano de obra, herramienta, equipo, deberá quedar acabado comun. | E8: M2 | F8: 1220.86 | G8: 450.59 | H8: 550107.31
A9: Concepto | C9: MC-02U | D9: Castillo K-1 de concreto F´c=150 kg/cm2 hecho en obra t.m.a. 3/4", 12x12 cm de sección, armado con armex 12x12-4; incluye: cimbra aparente y descimbra; fabricación, colado y curado del concreto; materiales y mano de obra, deberá de quedar con acabado final aparente. | E9: Ml | F9: 453 | G9: 229.6 | H9: 104008.8
A10: Concepto | C10: MC-02UA | D10: Castillo K-2 ahogados de 2.50 ML de altura incluye el pretil, con concreto F´c=150 kg/cm2 hecho en obra t.m.a. 3/4", con una varilla corrugada de refuerzo de 3/8"; armado, colado y vibrado del concreto; materiales y mano de obra,. | E10: Ml | F10: 399.96 | G10: 71.48 | H10: 28589.14
A11: Concepto | C11: MC-03U | D11: Cadena de cerramiento de concreto F´c=150 kg/cm2 hecho en obra t.m.a. 3/4", 12x20 cm de sección, armada con armex 12X20-4; incluye: cimbra aparente y descimbra; fabricación, colado y curado del concreto; materiales y mano de obra, deberá de quedar con acabado final aparente. | E11: Ml | F11: 982.08 | G11: 286.04 | H11: 280914.16
A12: Subcapítulo | B12: - | C12: 3.- | D12: CUBIERTA | H12: 1'000,282.42
A13: Concepto | C13: CU-01U | D13: Losa aligerada de 16 cm de espesor, a base de bovedilla de poliestireno y vigueta de alma abierta con armadura de acero diseño 10-36 de la marca deacero o similar, con patín de 12 cm de ancho por 5 cm de peralte, colado de capa de compresión de 4 cm con concreto F'c=200 kg/cm2, t.m.a. 3/4", reforzado malla electrosoldada de 6x6-10/10, el concepto incluye: afine de la superficie superior con acabado semipulido para recibir impermeabilización, cimbra y descimbra aparente, colado, vibrado, curado y todo lo necesario para su correcta ejecución. Para la ejecucion de este concepto el beneficiario aportara el importe de 4,000 pesos en la compra de los materiales alambre recocido, curacreto, malla electrosoldada 6x6 - 10/10, Vigueta alma abierta con armadura 12-36 y Bovedilla de poliestireno de 61x122 x11 cms de espesor; volado de 15x10 cms armado con varilla longitudinal de 3/8" y bastones de 40 cms de longitud a cada 30 cms y gotero a base de tuino de madera de 1" (2.54 cms) | E13: M2 | F13: 1190.94 | G13: 744 | H13: 886059.36
A14: Concepto | C14: CU-02U | D14: Impermeabilización de losa de azotea a base de impermeabilizante elastomerico de 3 años de garantía,a razón de 1 m2/lt, y tela reforzada, incluye: 3 manos de impermeabilizante , limpieza y preparación de la superficie. | E14: M2 | F14: 1190.94 | G14: 95.91 | H14: 114223.06
A15: Subcapítulo | B15: - | C15: 4.- | D15: ACABADOS | H15: 1'668,733.81
A16: Concepto | C16: AC-03U | D16: Aplanado de yeso en plafones, de 1.5 cm de espesor promedio, a plomo y regla, acabado pulido, reforzada con malla pollera en toda el área incluye: perfilado de aristas y remate en columnas, trabes y muros. | E16: M2 | F16: 1017.75 | G16: 256.41 | H16: 260961.28
A17: Concepto | C17: AC-14U | D17: Pintura vinílica lavable en muros exteriores, interiores y plafond de yeso, incluye: material, limpieza, rebabeado, preparación de la superficie, aplicación de sellador vinílico y dos manos de pintura. | E17: M2 | F17: 6354.9 | G17: 64.18 | H17: 407857.48
A18: Concepto | C18: AC-13UA | D18: Aplanado grueso en muros exteriores e interiroes a base de mortero cemento arena 1:4 en un espesor minimo de 1.5 cms , y terminado fino floteado con mortero cemento-arena 1:3 incluye: perfilado de aristas, remates, material, mano de obra y emboquillado. | E18: m2 | F18: 5337.15 | G18: 187.35 | H18: 999915.05
A19: Subcapítulo | B19: - | C19: 5.- | D19: PUERTAS Y VENTANAS | H19: 417567.3
A20: Concepto | C20: PV-04U | D20: Suministro y colocación de ventana corrediza de 0.83x1.05m a base de perfil de aluminio anodizado natural de 1 1/2" con cristal claro de 3mm con un fijo lateral y un corredizo, incluye: perfilado del hueco, previo a su colocación a base de mortero cemento-arena proporción 1:4. silicon, Herramienta, mano de obra y todo lo necesario para su correcta ejecución. | E20: Pza | F20: 69 | G20: 2155.14 | H20: 148704.66
A21: Concepto | C21: PV-01U | D21: Suministro e instalación de puerta de 0.90x2.06 mts, tipo multypanel lisa, fabricado con hoja de acero liso galvanizado cal. 28, con bastidor de madera de pino estufado, terminado en color blanco, relleno de esouma rigida de poliuretano con una densidad de 32 a 34 kg/m3 .,incluye marco metálico de 0.96x2.10m fabricado a base de perfil tubular M-225, chapa tipo bola con llave para exterior modelo MH52T3 marca fanal o similar acabado en latón brillante para exterior, dos bisagras de 3", pintura esmalte anticorrosivo color blanco, perfilado del hueco previo a su colocación con mortero cemento-arena 1:4. Herramienta, mano de obra y todo lo necesario para su correcta ejecución. | E21: Pza | F21: 69 | G21: 3896.56 | H21: 268862.64
A22: Subcapítulo | B22: - | C22: 6.- | D22: INSTALACIONES ELECTRICAS | H22: 176379.18
A23: Concepto | C23: IE-02U | D23: Salida eléctrica para tomacorriente, incluye; Contacto doble, tapa, poliducto eléctrico, cableado, ranurado, sujeción de poliducto, mano de obra y equipo. | E23: Sal | F23: 69 | G23: 510.2 | H23: 35203.8
A24: Concepto | C24: IE-03U | D24: Salida eléctrica para apagador sencillo de palanca color marfil marca leviton o similar, incluye: tapa de una via, poliducto eléctrico naranja reforzado de 1/2", cableado con cable thw #12, ranurado, resanado con mortero cemento-arena 1:4, sujeción de poliducto, mano de obra y equipo. | E24: Sal | F24: 69 | G24: 582.69 | H24: 40205.61
A25: Concepto | C25: IE-05U | D25: Salida eléctrica para lámpara, incluye; cableado con cable thw #12, caja octogonal de 4", con poliducto naranja reforzado de 1/2", cableado, ranurado, resanado con mortero cemento arena 1:4, sujeción de poliducto, mano de obra y equipo. | E25: Sal | F25: 69 | G25: 757.8 | H25: 52288.2
A26: Concepto | C26: IE-06U | D26: Suministro de foco fluorescente espiral 23 w. De luz fria con 100 W de iluminacion según proyecto, | E26: Pza | F26: 69 | G26: 65.82 | H26: 4541.58
A27: Concepto | C27: IE-07U | D27: Alimentación eléctrica de la vivienda existente a la recamara adicional para una distancia maxima de 6 mts el concepto incluye; poliducto naranja reforzado, cable thw #12, prueba del funcionamiento de las instalaciones y todo lo necesario para su correcta ejecucion. | E27: Sal, | F27: 69 | G27: 639.71 | H27: 44139.99

Sheet F-22 CATAL
G1: FORMATO N0. 22
B3: COMISION DE VIVIENDA | C3: CATÁLOGO DE CONCEPTOS, CANTIDADES DE OBRA, PRECIOS UNITARIOS, IMPORTES PARCIALES Y TOTALES DE LA PROPUESTA
B4: DEL ESTADO DE SONORA
C5: FECHA DE PRESENTACIÓN DE LA PROPUESTA: | G5: =IF(+datos!B10="","",+datos!B10) -> 
A6: =CONCATENATE("LICITACIÓN No.: ",+datos!B1) -> LICITACIÓN No.: | C6: F. INICIO | E6: F. TERMINO | G6: PLAZO: | H6: =CONCATENATE(+datos!B8, " DIAS NATURALES.") -> 150 DIAS NATURALES.
A7: =+datos!B9 -> MONTAJE DE 137(CIENTO TREINTA Y SIETE) RECAMARA ADICIONALES DE 16.65 M2 URBANA A BASE DE MODULOS PREFABRICADOS , TECHO DE LAMINA GALVANIZADA E INSTALACIONES ELÉCTRICAS, EN VARIAS LOCALIDADES DE LOS MUNICIPIOS DE ALAMOS, BACUM, HUATABAMPO, MAGDALENA, MAZATAN, SAN MIGUEL DE HORCASITAS Y URES DEL ESTADO DE SONORA.
D10: CANTIDADES DE OBRA, PRECIOS UNITARIOS E IMPORTES
A11: CLAVE | B11: DESCRIPCIÓN | C11: UNIDAD | D11: CANTIDAD | E11: P. UNIT. CON NUMERO | F11: PRECIO UNIT. CON LETRA | G11: IMPORTE | I11: 1
A13: =+OPUSCAT!D2 -> PRELIMINARES | D13: PESOS 00/100 M.N.**
A14: =+OPUSCAT!C3 -> PRE-01 | B14: =CONCEPTOS(OPUSCAT!$C$3:$H$19,A14,2) -> TRAZO Y NIVELACIÓN DEL TERRENO ESTABLECIENDO EJES DE REFERENCIA CON ESTACAS DE ARILLA HILO NYLON Y CAL, MATERIAL, HERRAMIENTA Y MANO DE OBRA | C14: =CONCEPTOS(OPUSCAT!$C$3:$H$19,$A14,3) -> M2 | D14: =CONCEPTOS(OPUSCAT!$C$3:$H$19,$A14,4) -> 2260.5 | E14: =CONCEPTOS(OPUSCAT!$C$3:$H$19,$A14,5) -> 0 | G14: =D14*E14 -> 0 | I14: =+Hoja7!F3 -> 16.65 | K14: =+I14*$I$11 -> 16.65
A15: =+OPUSCAT!C4 -> PRE-02 | B15: =CONCEPTOS(OPUSCAT!$C$3:$H$19,A15,2) -> TRABAJOS DE EXCAVACION PERIMETRAL PARA ALOJAR ESTRUCTURA PREFABRICADA DE 0.30X0.15M AL PERIMETRO TOTAL DEL PREDIO, INCLUYE ADINE Y COMPACTACION DEL TERRENO | C15: =CONCEPTOS(OPUSCAT!$C$3:$H$19,$A15,3) -> ML | D15: =CONCEPTOS(OPUSCAT!$C$3:$H$19,$A15,4) -> 2329 | E15: =CONCEPTOS(OPUSCAT!$C$3:$H$19,$A15,5) -> 0 | G15: =D15*E15 -> 0 | I15: =+Hoja7!F4 -> 0.26 | K15: =+I15*$I$11 -> 0.26
D16: =+A13 -> PRELIMINARES | G16: =+SUM(G14:H15) -> 0
A19: =+OPUSCAT!D5 -> ESTRUCTURAL
A20: =+OPUSCAT!C6 -> EST-01 | B20: =CONCEPTOS(OPUSCAT!$C$3:$H$19,A20,2) -> TRASLADO, HABILITADO Y COLOCACION DE PANALES DE CONCRETO Y PERLITA DE DIFERENTES DIMENCIONES, INCLUYE SOLDAR LAS PLACAS ENTRE SI, CARGA, DESCARGA CON GRUA ASI COMO LA COLOCACION EN SU SITIO, INCLUYE, GRUA PARA MANIOBRAS DE COLOCACION, SOLDADORA, PLANTA DE LUZ, PLOMEADO DE MUROS, MATERIAL, HERAMIENTA Y MANO DE OBRA | C20: =CONCEPTOS(OPUSCAT!$C$3:$H$19,$A20,3) -> PZA | D20: =CONCEPTOS(OPUSCAT!$C$3:$H$19,$A20,4) -> 137 | E20: =CONCEPTOS(OPUSCAT!$C$3:$H$19,$A20,5) -> 0 | G20: =D20*E20 -> 0 | I20: =+Hoja7!F9 -> 32.06 | K20: =+I20*$I$11 -> 32.06
D21: =+A19 -> ESTRUCTURAL | G21: =SUM(G20:H20) -> 0
A24: =+OPUSCAT!D7 -> ALBAÑILERIAS
A25: =+OPUSCAT!C8 -> ALB-01 | B25: =CONCEPTOS(OPUSCAT!$C$3:$H$19,A25,2) -> RESANE DE JUNTAS FRIAS ENTRE PANALES A BASE DE MATERIAL CEMEX COLOR BLANCO MULTIPLAST O SIMILAR Y MALLLA GEOTEXTIL AUTOADERENTE DE 15CM EN TODA LA JUNTA, ACABADO FLOTEADO, INCLUYE MATERIAL, HERAMIENTA Y MANO DE OBRA | C25: =CONCEPTOS(OPUSCAT!$C$3:$H$19,$A25,3) -> ML | D25: =CONCEPTOS(OPUSCAT!$C$3:$H$19,$A25,4) -> 3356.5 | E25: =CONCEPTOS(OPUSCAT!$C$3:$H$19,$A25,5) -> 0 | G25: =D25*E25 -> 0 | I25: =+Hoja7!F15 -> 17.26 | K25: =+I25*$I$11 -> 17.26
A26: =+OPUSCAT!C9 -> ALB-02 | B26: =CONCEPTOS(OPUSCAT!$C$3:$H$19,A26,2) -> RESANE DE GRIETAS EN LA SUPERFICIE DE MUROS, CON PRODUCTO CEMEX BLANCO MULTIPLAST O SIMILAR, ACBADO FLOTEADO, INCLUYE LAVADO DE LA SUPERFICIE, APLICACION DEL PRODUCTO ACABADO FLOTEADO COLOCADO CON LLANA MATERIAL, HERRAMIENTA Y MANO DE OBRA | C26: =CONCEPTOS(OPUSCAT!$C$3:$H$19,$A26,3) -> M2 | D26: =CONCEPTOS(OPUSCAT!$C$3:$H$19,$A26,4) -> 5493.7 | E26: =CONCEPTOS(OPUSCAT!$C$3:$H$19,$A26,5) -> 0 | G26: =D26*E26 -> 0 | I26: =+Hoja7!F16 -> 1 | K26: =+I26*$I$11 -> 1
A27: =+OPUSCAT!C10 -> ALB-03 | B27: =CONCEPTOS(OPUSCAT!$C$3:$H$19,A27,2) -> SUMINISTRO Y COLOCACION DE SIKA FLEX 1A O SIMILAR EN JUNTAS FRIAS DE PISO DE CONCRETO, INCLUYE MATERIAL, HERRAMIENTA Y MANO DE OBRA | C27: =CONCEPTOS(OPUSCAT!$C$3:$H$19,$A27,3) -> ML | D27: =CONCEPTOS(OPUSCAT!$C$3:$H$19,$A27,4) -> 3466.1 | E27: =CONCEPTOS(OPUSCAT!$C$3:$H$19,$A27,5) -> 0 | G27: =D27*E27 -> 0 | I27: =+Hoja7!F17 -> 12.02 | K27: =+I27*$I$11 -> 12.02
A28: =+OPUSCAT!C11 -> ALB-04 | B28: =CONCEPTOS(OPUSCAT!$C$3:$H$19,A28,2) -> SUMINISTRO Y APLICACIONDE PINTURA BLANCA EN TODA LA SUPERFICIE CALIDAD OSEL O SIMILAR , INCLUYE MATERIAL, HERAMIENTA Y MANO DE OBRA | C28: =CONCEPTOS(OPUSCAT!$C$3:$H$19,$A28,3) -> M2 | D28: =CONCEPTOS(OPUSCAT!$C$3:$H$19,$A28,4) -> 10987.4 | E28: =CONCEPTOS(OPUSCAT!$C$3:$H$19,$A28,5) -> 0 | G28: =D28*E28 -> 0 | I28: =+Hoja7!F18 -> 14.75 | K28: =+I28*$I$11 -> 14.75
A29: =+OPUSCAT!C12 -> ALB-05 | B29: =CONCEPTOS(OPUSCAT!$C$3:$H$19,A29,2) -> ELABORACION DE REMATE PARA RESIVIR MURO Y ELABORADA A BASE DE MORTERO CEMNETO-ARENA 1:3 SECCION VARIABLE DE 0.10 A 0.05CM DE 0.07CM DE ANCHO INCLUYE CIMBRA, DESCIMBRA, MATERIAL, HERRAMIENTA Y MANO DE OBRA | C29: =CONCEPTOS(OPUSCAT!$C$3:$H$19,$A29,3) -> ML | D29: =CONCEPTOS(OPUSCAT!$C$3:$H$19,$A29,4) -> 1644 | E29: =CONCEPTOS(OPUSCAT!$C$3:$H$19,$A29,5) -> 0 | G29: 0 | I29: =+Hoja7!F19 -> 77.35 | K29: 77.35
D30: =+A24 -> ALBAÑILERIAS | G30: =SUM(G25:H29) -> 0
A31: =+OPUSCAT!D13 -> TECHUMBRE
A32: =+OPUSCAT!C14 -> TECH-01 | B32: =CONCEPTOS(OPUSCAT!$C$3:$H$19,A32,2) -> ELABORACION DE TECHUMBRE DE LAMINA GALVANIZADA R-72 DE 20FT, POLINERIA DE 4" EN TODA SU SECCION INCLUYE MATERIAL, HERAMIENTA Y MANO DE OBRA | C32: =CONCEPTOS(OPUSCAT!$C$3:$H$19,$A32,3) -> M2 | D32: =CONCEPTOS(OPUSCAT!$C$3:$H$19,$A32,4) -> 2712.6 | E32: =CONCEPTOS(OPUSCAT!$C$3:$H$19,$A32,5) -> 0 | G32: =D32*E32 -> 0 | I32: =+Hoja7!F18 -> 14.75 | K32: =+I32*$I$11 -> 14.75
D33: =+A31 -> TECHUMBRE | G33: =+SUM(G32:H32) -> 0
A36: =+OPUSCAT!D15 -> ACABADOS
A37: =+OPUSCAT!C16 -> ACA-01 | B37: =CONCEPTOS(OPUSCAT!$C$3:$H$19,A37,2) -> COLOCACION DE PUERTA EN BASTIDOR EXISTENTE INCLUYE MONTAJE, HERRAMIENTA Y MANO DE OBRA | C37: =CONCEPTOS(OPUSCAT!$C$3:$H$19,$A37,3) -> PZA | D37: =CONCEPTOS(OPUSCAT!$C$3:$H$19,$A37,4) -> 137 | E37: =CONCEPTOS(OPUSCAT!$C$3:$H$19,$A37,5) -> 0 | G37: =D37*E37 -> 0 | I37: =+Hoja7!F16 -> 1 | K37: =+I37*$I$11 -> 1
D38: =+A36 -> ACABADOS | G38: =SUM(G37:H37) -> 0
A41: =+OPUSCAT!D17 -> ELECTRICO
A42: =+OPUSCAT!C18 -> ELE-01 | B42: =CONCEPTOS(OPUSCAT!$C$3:$H$19,A42,2) -> COLOCACION DE ROSETA EXTERIOR PARA ALUMBRADO, INCLUYE MATERIAL, HERRAMIENTA , MANO DE OBRA, CABE ACLARAR QUE EN RELACION A LAS DEMAS INSTALACIONES ELECTRICAS COMO CABLEADO, TOMACORRIENTE, APAGADOR ESTOS YA ESTAN INTEGRADOS A LOS MUROS. | C42: =CONCEPTOS(OPUSCAT!$C$3:$H$19,$A42,3) -> PZA | D42: =CONCEPTOS(OPUSCAT!$C$3:$H$19,$A42,4) -> 137 | E42: =CONCEPTOS(OPUSCAT!$C$3:$H$19,$A42,5) -> 0 | G42: =D42*E42 -> 0 | I42: =+Hoja7!F22 -> 1 | K42: =+I42*$I$11 -> 1
D43: =+A41 -> ELECTRICO | G43: =SUM(G42:H42) -> 0
A47: TOTAL DE PRESUPUESTO ** EXENTO DE I.V.A. | D47: TOTAL DE PRESUPUESTO | G47: =+G16+G21+G33+G38+G43+G30 -> 0 | I47: =+G47/datos!B4 -> 0 | W47: =+OPUSCAT!H1 -> 0 | X47: =+G47-W47 -> 0

Sheet Hoja1 (hidden)
B4: - | C4: Capítulo | E4: CONSTRUCCIÓN DE VIVIENDA DE 44.56 M2, A BASE DE LOSA DE CIMENTACIÓN, MUROS DE BLOCK, TECHO DE VIGUETA Y BOVEDILLA, INSTALACIONES ELÉCTRICAS, HIDRÁULICAS Y SANITARIAS. | I4: 116600
B5: - | C5: Subcapítulo | E5: LOSA DE CIMENTACIÓN | I5: 21033.97
C6: Concepto | D6: PC-01 | E6: Limpia, trazo y nivelación. | F6: M2 | G6: 44.56 | H6: 9.45 | I6: 421.09
C7: Concepto | D7: PC-02 | E7: Excavación a mano en terreno investigado en obra, cualquier profundidad, incluye afine de taludes y acarreo fuera de la obra de material no utilizable. | F7: M3 | G7: 9.88 | H7: 117.4 | I7: 1159.91
C8: Concepto | D8: PC-03 | E8: Suministro de material de banco, bajo firmes, incluyendo producción, derechos, fletes, suministro en obra, acarreos en obra y afine. (volumen medido compacto). | F8: M3 | G8: 8.91 | H8: 140 | I8: 1247.4
C9: Concepto | D9: PC-04 | E9: Relleno y compactado de material con pisón de mano y agua en capas de espesor máximo de 20 cm, incluye acarreo en carretilla libre a 20 m. | F9: M3 | G9: 8.91 | H9: 65.66 | I9: 585.03
C10: Concepto | D10: PC-05 | E10: Losa de Cimentación de 9 cm de espesor, a base de concreto F'c=200 kg/cm2; t.m.a. 3/4" hecho en obra; reforzado con malla electrosoldada 6x6-10/10, plantilla de 5 cm de espesor a base de concreto F'c=100 kg/cm2 t.m.a. 3/4", dentellón perimetral e intermedio a base de armex de 15x20 cm; anclaje a base de bastones con varilla 3/8" @ 30 con 40 cm de largo donde se indique en los planos de proyecto, acabado pulido, incluye curado, vibrado, colado y todo lo necesario para su correcta ejecución. | F10: M2 | G10: 44.56 | H10: 373.14 | I10: 16627.12
C11: Concepto | D11: PC-06 | E11: Impermeabilización a base de producto epóxico color negro aplicado sobre los 12 cm del desplante y 20 cm del espesor de la losa y dentellón perimetral en todo el perímetro, incluye: materiales, mano de obra, herramienta y equipo necesarios para su correcta ejecución. | F11: ML | G11: 26.9 | H11: 36.93 | I11: 993.42
B12: - | C12: Subcapítulo | E12: MUROS | I12: 29572.67
C13: Concepto | D13: MC-04 | E13: Construcción de muro de block de 12x20x40 cm junteado con mortero cemento arena proporción 1:4, incluye: Muro de enrase, plomeado, relleno de huecos en contorno de ventanas a base de concreto F´c= 150 kg/cm2 hecho en obra t.m.a. 3/4", materiales, mano de obra, herramienta, equipo y todo lo necesario para su correcta ejecución. | F13: M2 | G13: 81.04 | H13: 219.73 | I13: 17806.92
C14: Concepto | D14: MC-05 | E14: Castillo de concreto F´c=150 kg/cm2 hecho en obra t.m.a. 3/4", 12x12 cm de sección, armado con armex 12x12-4; incluye: Cimbra y descimbra; fabricación, colado y curado del concreto; materiales, mano de obra, equipo y todo lo necesario para su correcta ejecución. | F14: ML | G14: 43.38 | H14: 134.97 | I14: 5855
C15: Concepto | D15: MC-06 | E15: Cadena de cerramiento de concreto F´c=150 kg/cm2 hecho en obra t.m.a. 3/4", 12x20 cm de sección, armada con armex 12X20-4; incluye: Cimbra y descimbra; fabricación, colado y curado del concreto; materiales, mano de obra, equipo y todo lo necesario para su correcta ejecución. | F15: ML | G15: 40.16 | H15: 147.18 | I15: 5910.75
B16: - | C16: Subcapítulo | E16: CUBIERTA | I16: 27898.15
C17: Concepto | D17: CU-01 | E17: Losa aligerada de 15 cm de espesor, a base de bovedilla de poliestireno y vigueta de alma abierta con armadura de acero diseño 10-36 de la marca deacero o similar, con patín de 12 cm de ancho por 5 cm de peralte, colado de capa de compresión de 4 cm con concreto F'c=200 kg/cm2, t.m.a. 3/4", reforzado malla electrosoldada de 6x6-10/10, el concepto incluye: afine de la superficie superior con acabado semipulido para recibir impermeabilización, cimbra y descimbra aparente, volado de concreto de 0.19 x 0.10 m, armado de con varilla de 3/8", 1 varilla longitudinal y bastones @ .30m de .40m de longitud, colado, vibrado, curado y todo lo necesario para su correcta ejecución. | F17: M2 | G17: 46.07 | H17: 471.13 | I17: 21704.96
C18: Concepto | D18: CU-02 | E18: Impermeabilización de losa de azotea a base de impermeabilizante elastomerico marca termoteck o similar de 3 años de garantía, a razón de 1 m2/lt, y tela de refuerzo sencillo, incluye limpieza y preparación de la superficie. | F18: M2 | G18: 46.07 | H18: 134.43 | I18: 6193.19
B19: - | C19: Subcapítulo | E19: ACABADOS | I19: 7729.03
C20: Concepto | D20: AC-01 | E20: Aplanado de yeso en plafones, de 1.5 cm de espesor promedio, a plomo y regla, acabado pulido, reforzada con malla pollera en toda el área incluye: perfilado de aristas y remate en columnas, trabes y muros. | F20: M2 | G20: 39.71 | H20: 144.56 | I20: 5740.48
C21: Concepto | D21: AC-02 | E21: Sardinel de 10x10 cm a base de concreto hidráulico de F'c=150 kg/cm2 t.m.a. 3/4",con anclas de varilla corrugada de 3/8" según especificaciones de proyecto. Incluye: Herramienta, mano de obra y todo lo necesario para su correcta ejecución. | F21: ML | G21: 1.92 | H21: 78.08 | I21: 149.91
C22: Concepto | D22: AC-03 | E22: Suministro y colocación de azulejo de 20x30cm de color blanco de la marca porcelanite o similar asentado con cemento crest o similar, boquilla de 2 mm a base de junta crest anti-hongo o similar. Incluye: Herramienta, mano de obra y todo lo necesario para su correcta ejecución. | F22: M2 | G22: 4 | H22: 249.33 | I22: 997.32
C23: Concepto | D23: AC-04 | E23: Suministro y colocación de piso antiderrapante de 20x20cm de color blanco de la marca porcelanite o similar asentado con cemento crest o similar, boquilla de 2 mm a base de junta crest anti-hongo o similar. Incluye: Herramienta, mano de obra y todo lo necesario para su correcta ejecución. | F23: M2 | G23: 3.75 | H23: 217.32 | I23: 814.95
C24: Concepto | D24: AC-05 | E24: Colocación de placa de cerámica en medidas de 20x20 cm, con cemento crest, en muro de fachada. Incluye; Material, herramienta, mano de obra y todo lo necesario para su correcta ejecución. | F24: M2 | G24: 1 | H24: 26.37 | I24: 26.37
B25: - | C25: Subcapítulo | E25: PUERTAS Y VENTANAS | I25: 10200.63
C26: Concepto | D26: PV-01 | E26: Suministro e instalación de puerta tipo multypanel 0.90x2.06m con marco metálico de 0.96x2.10m fabricado a base de perfil tubular M-225., chapa tipo bola con llave para exterior modelo MH52T3 marca fanal o similar acabado en latón brillante para exterior, dos bisagras de 3", pintura esmalte anticorrosivo color blanco en el marco metálico, el concepto incluye perfilado del hueco previo a su colocación con mortero cemento-arena 1:4. Incluye: Herramienta, mano de obra y todo lo necesario para su correcta ejecución. | F26: PZA | G26: 1 | H26: 1875.8 | I26: 1875.8
C27: Concepto | D27: PV-02 | E27: Suministro e instalación de puerta de tambor 0.80x2.06m con marco metálico de 0.86x2.10m fabricado a base de perfil tubular M-225., chapa tipo bola para interior marca fanal o similar, dos bisagras de 3", pintura esmalte anticorrosivo color blanco en el marco metálico, el concepto incluye perfilado del hueco previo a su colocación con mortero cemento-arena 1:4. Incluye: Herramienta, mano de obra y todo lo necesario para su correcta ejecución. | F27: PZA | G27: 2 | H27: 1066.69 | I27: 2133.38
C28: Concepto | D28: PV-03 | E28: Suministro e instalación de puerta de tambor 0.70x2.06m con marco metálico de 0.76x2.10m fabricado a base de perfil tubular M-225., chapa tipo bola para interior marca fanal o similar, dos bisagras de 3", pintura esmalte anticorrosivo color blanco en el marco metálico, el concepto incluye perfilado del hueco previo a su colocación con mortero cemento-arena 1:4. Incluye: Herramienta, mano de obra y todo lo necesario para su correcta ejecución. | F28: PZA | G28: 1 | H28: 996.58 | I28: 996.58
C29: Concepto | D29: PV-04 | E29: Suministro y colocación de ventana corrediza de 0.83x1.05m a base de perfil de aluminio anodizado natural de 1 1/2" con cristal claro de 3mm con un fijo lateral y un corredizo, incluye perfilado del hueco, previo a su colocación a base de mortero cemento-arena proporción 1:4. Incluye: Herramienta, mano de obra y todo lo necesario para su correcta ejecución. | F29: PZA | G29: 3 | H29: 987.18 | I29: 2961.54
C30: Concepto | D30: PV-05 | E30: Suministro y colocación de ventana corrediza de 0.60x0.40m a base de perfil de aluminio anodizado natural de 1 1/2" con cristal claro de 3mm con un fijo lateral y un corredizo, incluye perfilado del hueco previo a su colocación a base de mortero cemento-arena proporción 1:4. Incluye: Herramienta, mano de obra y todo lo necesario para su correcta ejecución. | F30: PZA | G30: 1 | H30: 698.79 | I30: 698.79
C31: Concepto | D31: PV-06 | E31: Suministro e instalación de puerta tipo multypanel 0.80x2.06m con marco metálico de 0.86x2.10m fabricado a base de perfil tubular M-225., chapa tipo bola con llave para exterior modelo MH52T3 marca fanal o similar acabado en latón brillante para exterior, dos bisagras de 3", pintura esmalte anticorrosivo color blanco en el marco metálico, el concepto incluye perfilado del hueco previo a su colocación con mortero cemento-arena 1:4. Incluye: Herramienta, mano de obra y todo lo necesario para su correcta ejecución. | F31: PZA | G31: 1 | H31: 1534.54 | I31: 1534.54
B32: - | C32: Subcapítulo | E32: INSTALACIONES ELÉCTRICAS | I32: 7635.94
C33: Concepto | D33: IE-01 | E33: Suministro y colocación de centro de carga de dos circuitos con una pieza de interruptor sencillo de 1x30 amperes, tubería galvanizada conduit pared delgada de 3/4", el concepto incluye ranurado, resanado con mortero cemento-arena 1:4, prueba del correcto funcionamiento de las instalaciones y todo lo necesario para su correcto funcionamiento. | F33: PZA | G33: 1 | H33: 481.41 | I33: 481.41
C34: Concepto | D34: IE-02 | E34: Salida eléctrica para tomacorriente, incluye; Contacto doble, tapa, poliducto eléctrico, cableado con cable thw #12, ranurado, sujeción de poliducto, mano de obra y equipo. | F34: SAL | G34: 9 | H34: 358.32 | I34: 3224.88
C35: Concepto | D35: IE-03 | E35: Salida eléctrica para apagador sencillo, incluye: tapa de una via, poliducto eléctrico naranja reforzado de 1/2", cableado con cable thw #12, ranurado, resanado con mortero cemento-arena 1:4, sujeción de poliducto, mano de obra y equipo. | F35: SAL | G35: 3 | H35: 310.39 | I35: 931.17
C36: Concepto | D36: IE-04 | E36: Salida eléctrica para apagador doble, incluye; tapa de dos vías, poliducto eléctrico naranja reforzado de 1/2", cableado con cable thw #12, ranurado, resanado con mortero cemento-arena 1:4, sujeción de poliducto, mano de obra y equipo. | F36: SAL | G36: 2 | H36: 355.65 | I36: 711.3
C37: Concepto | D37: IE-05 | E37: Salida eléctrica para lámpara, incluye; cableado con cable thw #12, caja octogonal de 4", con poliducto naranja reforzado de 1/2", cableado, ranurado, resanado con mortero cemento-arena 1:4, sujeción de poliducto, mano de obra y equipo. | F37: SAL | G37: 7 | H37: 279.08 | I37: 1953.56
C38: Concepto | D38: IE-06 | E38: Suministro e instalación de foco incandescente de 100 watts según proyecto, incluye: la roseta de porcelana de 4" y todo lo necesario para su correcta instalación. | F38: PZA | G38: 7 | H38: 47.66 | I38: 333.62
B39: - | C39: Subcapítulo | E39: INSTALACIONES HIDRÁULICAS Y SANITARIAS | I39: 12529.61
C40: Concepto | D40: IHS-05 | E40: Salidas para instalación sanitaria de 1 1/2", 2" y 4" para ventila, lavabo, sanitario, tarja y regadera, tubería de pvc, conexiones, pegamento, ranurado, resanado con mortero cemento-arena 1:4, pendiente, materiales, mano de obra, herramienta y equipo. | F40: SAL | G40: 5 | H40: 364.4 | I40: 1822
C41: Concepto | D41: IHS-07 | E41: Salidas para instalación hidráulica para regadera agua fría y caliente, lavabo, sanitario, tarja o zinc, con tubería cpvc de 1/2" marca duralon o similar, el concepto incluye: 2 Dispositivos economizadores de agua (DISEA M) marca EEFIMEX ó similar en regadera y lavabo, limpieza, conexiones, ranurado, pendiente, materiales, mano de obra, herramienta, equipo, resanado con mortero cemento-arena 1:4, prueba del correcto funcionamiento de las instalaciones y todo lo necesario para su correcto funcionamiento. | F41: SAL | G41: 5 | H41: 442.83 | I41: 2214.15
C42: Concepto | D42: IHS-08 | E42: Suministro e instalación de sanitario marca lamosa o similar línea económica en color blanco, incluye asiento, pijas, cuello de cera, manguera flexible, llave cromada de 1/2". | F42: PZA | G42: 1 | H42: 1567.81 | I42: 1567.81
C43: Concepto | D43: IHS-09 | E43: Suministro e instalación de lavabo marca lamosa o similar línea económica en color blanco, incluye: Llave mezcladora marca helvex o similar línea económica, juego de patas, soportes, manguera flexible, llave cromada de 1/2", cespol bote. | F43: PZA | G43: 1 | H43: 1203.52 | I43: 1203.52
C44: Concepto | D44: IHS-10 | E44: Suministro e instalación de regadera línea económica incluye llaves de empotrar, manerales, brazo y chapetón. | F44: PZA | G44: 1 | H44: 1723.06 | I44: 1723.06
C45: Concepto | D45: IHS-11 | E45: Construcción de registro sanitario de 46x45cm de medida interna, a base de ladrillo recocido común de la región de 7x14x28 cm, junteado con mortero cal-arena 1:5 + 10% de cemento, base y tapa a base de concreto F'c=150 kg/cm2 con t.m.a. 3/4" reforzado con malla electrosoldada 6x6-10/10 el concepto incluye: enjarre interior con mortero cemento-arena 1:3, fabricación y colocación de dos jaladeras para la tapa a base de alambrón de 1/4", con pases a base de poliducto de 1/2". y todo lo necesario para su correcta ejecución. | F45: PZA | G45: 1 | H45: 671.94 | I45: 671.94
C46: Concepto | D46: IHS-12 | E46: Suministro e instalación de tinaco de 600 lt de la marca rotoplas o similar con el sistema de 3 capas para garantizar una vida útil de 35 años, con todos los accesorios como jarro de aire, flotador #5, válvula de llenado ¾", multiconector con válvula de esfera, tuerca unión y válvula check, incluye base para nivelar tinaco (detalle plano), la alimentación hidráulica por medio de tubería cpvc de 1/2" y todo lo necesario para su correcto funcionamiento. | F46: PZA | G46: 1 | H46: 2027.04 | I46: 2027.04
C47: Concepto | D47: IHS-13 | E47: Suministro e instalación de lavadero doble de empotrar, el concepto incluye; firme de concreto sencillo, murete de block de 12x20x40 cm, segun proyecto, la salida sanitaria con tubería pvc de 2" y la salida hidráulica con tubería cpvc de 1/2", llave de jardín de 1/2", dispositivo economizador de agua (DISEA M) marca EEFIMEX ó similar, resanado con mortero cemento-arena 1:4 y todo lo necesario para su correcto funcionamiento. | F47: PZA | G47: 1 | H47: 1300.09 | I47: 1300.09

Sheet Hoja2 (hidden)

Sheet Hoja3 (hidden)

Sheet Hoja4 (hidden)
A1: - | B1: Capítulo | D1: CONSTRUCCIÓN DE RECAMARA ADICIONAL DE 16.48 M2 URBANA A BASE DE LOSA DE CIMENTACIÓN, MUROS DE BLOCK, TECHO DE VIGUETA E INSTALACIONES ELÉCTRICAS, EN LOS MUNICIPIOS DE SONORA.
A2: - | B2: Subcapítulo | C2: 1.- | D2: LOSA DE CIMENTACION
B3: Concepto | C3: PC-01U | D3: Limpia, trazo y nivelación. | E3: M2 | F3: 16.48
B4: Concepto | C4: PC-02U | D4: Excavación a mano en terreno investigado en obra, cualquier profundidad, incluye afine de taludes y acarreo fuera de la obra de material no utilizable. | E4: M3 | F4: 0.38
B5: Concepto | C5: PC-05U | D5: Losa de Cimentación de 9 cm de espesor, a base de concreto F'c=200 kg/cm2; t.m.a. 3/4" hecho en obra; reforzado con malla electrosoldada 6x6-10/10, plantilla de 5 cm de espesor a base de concreto F'c=100 kg/cm2 t.m.a. 3/4", dentellón perimetral e intermedio a base de armex de 15x20 cm; anclaje a base de bastones con varilla corrugada 3/8" grado 42 o 5/16 DA 6000 @ 30 con 40 cm de largo donde se indique en los planos de proyecto, acabado pulido, incluye: fumigacion antitermitas con fumigante aditivo adherente termidor o similar, curado, vibrado, colado y todo lo necesario para su correcta ejecución. | E5: M2 | F5: 16.48
B6: Concepto | C6: PC-06U | D6: Impermeabilización a base de producto epóxico color negro aplicado sobre los 12 cm del desplante y 20 cm del espesor de la losa y dentellón perimetral en todo el perímetro, incluye: materiales, mano de obra, herramienta y equipo necesarios para su correcta ejecución. | E6: Ml | F6: 15.76
B7: Concepto | C7: PC-07U | D7: Afine, nivelacion y compactacion de terreno natural para desplante de losa de cimentacio, incluye todo lo necesario para su correcta ejecucion. | E7: M2 | F7: 16.48
A8: - | B8: Subcapítulo | C8: 2.- | D8: ALBAÑILERIA
B9: Concepto | C9: MC-01U | D9: Construcción de muro de block de 12x20x40 cm junteado con mortero cemento arena proporción 1:4, incluye; Muro de enrase, plomeado, relleno de huecos en contorno de ventanas a base de concreto F´c= 150 kg/cm2 hecho en obra t.m.a. 3/4", materiales, mano de obra, herramienta, equipo, con boquilla cortada a hueso. | E9: M2 | F9: 30.55
B10: Concepto | C10: MC-02U | D10: Castillo K-1 de concreto F´c=150 kg/cm2 hecho en obra t.m.a. 3/4", 12x12 cm de sección, armado con armex 12x12-4; incluye: cimbra aparente y descimbra; fabricación, colado y curado del concreto; materiales y mano de obra, deberá de quedar con acabado final aparente. | E10: Ml | F10: 10.06
B11: Concepto | C11: MC-02UA | D11: Castillo K-2 ahogados de 2.50 ML de altura incluye el pretil, con concreto F´c=150 kg/cm2 hecho en obra t.m.a. 3/4", con una varilla corrugada de refuerzo de 3/8"; armado, colado y vibrado del concreto; materiales y mano de obra,. | E11: Ml | F11: 10.03
B12: Concepto | C12: MC-03U | D12: Cadena de cerramiento de concreto F´c=150 kg/cm2 hecho en obra t.m.a. 3/4", 12x20 cm de sección, armada con armex 12X20-4; incluye: cimbra aparente y descimbra; fabricación, colado y curado del concreto; materiales y mano de obra, deberá de quedar con acabado final aparente. | E12: Ml | F12: 15.76
B13: Concepto | C13: MC-04U | D13: Construcción de pretil a base de block de 12x20x40 cm junteado con mortero cemento arena proporción 1:4, incluye; plomeado, relleno de huecos en parte superior y en parte inferior para nivelar con concreto F´c= 150 kg/cm2 hecho en obra t.m.a. 3/4", materiales, mano de obra, herramienta, equipo, con boquilla cortada a hueso. | E13: M2 | F13: 4.03
B14: Concepto | C14: MC-05U | D14: Construcción de diamantes a base de mortero cemento-arena 1:4 2.5 cm de e spesor promedio acabado floteado para recibir impermeabilizacion, incluye trazo y ejecucion de pendientes, elevacion de materiales hasta 3.00 m, material, herramienta y mano de obra. | E14: m2 | F14: 2.27
B15: Concepto | C15: MC-06U | D15: Suministro y Colocacion de gargola tipo cuadrada sencilla incluye demolicion, mortero cemento-arena 1:4 y todo lo necesario para su correcta instalacion. | E15: pza | F15: 2
A16: - | B16: Subcapítulo | C16: 3.- | D16: CUBIERTA
B17: Concepto | C17: CU-01U | D17: Losa aligerada de 15 cm de espesor, a base de bovedilla de poliestireno y vigueta de alma abierta con armadura de acero diseño 10-36 de la marca deacero o similar, con patín de 12 cm de ancho por 5 cm de peralte, colado de capa de compresión de 4 cm con concreto F'c=200 kg/cm2, t.m.a. 3/4", reforzado malla electrosoldada de 6x6-10/10, el concepto incluye: afine de la superficie superior con acabado semipulido para recibir impermeabilización, cimbra y descimbraaparente, colado, vibrado, curado y todo lo necesario para su correcta ejecución. Para la ejecucion de este concepto el beneficiario aportara el importe de 4,000 pesos en la compra de los materiales alambre recocido, curacreto, malla electrosoldada 6x6 - 10/10, Vigueta alma abierta con armadura 10-36 y Bovedilla de poliestireno de 61x122 x11 cms de espesor | E17: M2 | F17: 16.48
B18: Concepto | C18: CU-02U | D18: Impermeabilización de losa de azotea a base de impermeabilizante elastomerico de 3 años de garantía,a razón de 1 m2/lt, y tela de refuerzo sencillo, incluye limpieza y preparación de la superficie. | E18: M2 | F18: 16.48
A19: - | B19: Subcapítulo | C19: 4.- | D19: ACABADOS
B20: Concepto | C20: AC-01U | D20: Chaflán de 10x10 cms. con pasta de cemento-arena prop. 1:4, según detalle indicado en los planos, Incluye: Material, mano de obra, herramienta y todo lo necesario para su correcta ejecución. | E20: ML | F20: 8.92
B21: Concepto | C21: AC-03U | D21: Aplanado de yeso en plafones, de 1.5 cm de espesor promedio, a plomo y regla, acabado pulido, reforzada con malla pollera en toda el área incluye: perfilado de aristas y remate en columnas, trabes y muros. | E21: M2 | F21: 14.59
B22: Concepto | C22: AC-09U | D22: Cemento blanco, en muro de fachada para colocacion de placa Incluye; Material, herramienta, mano de obra y todo lo necesario para su correcta ejecución. | E22: Pza | F22: 1
B23: Concepto | C23: AC-14U | D23: Pintura vinílica lavable en muros y plafond incluye: material, limpieza, rebabeado, preparación de la superficie, aplicación de sellador vinílico y dos manos de pintura. | E23: M2 | F23: 92.95
B24: Concepto | C24: AC-13U | D24: Aplanado de mezcla en muros, a base de mortero cemento arena 1:3, acabado fino floteado , incluye: material, mano de obra, remates y emboquillado. | E24: m2 | F24: 78.36
A25: - | B25: Subcapítulo | C25: 5.- | D25: PUERTAS Y VENTANAS
B26: Concepto | C26: PV-04U | D26: Suministro y colocación de ventana corrediza de 0.83x1.05m a base de perfil de aluminio anodizado natural de 1 1/2" con cristal claro de 3mm con un fijo lateral y un corredizo, incluye perfilado del hueco, previo a su colocación a base de mortero cemento-arena proporción 1:4. Incluye: Herramienta, mano de obra y todo lo necesario para su correcta ejecución. | E26: Pza | F26: 1
B27: Concepto | C27: PV-06U | D27: Suministro e instalación de puerta de 0.90x2.10 mts, tipo multypanel lisa, fabricado con hoja de acero liso galvanizado cal. 28, con bastidor de madera de pino estufado, terminado en color blanco, relleno de esouma rigida de poliuretano con una densidad de 32 a 34 kg/m3 .,incluye marco metálico fabricado a base de perfil tubular M-225,chapa tipo bola con llave para exterior acabado en latón brillante para exterior, dos bisagras de 3", pintura esmalte anticorrosivo color blanco, perfilado del hueco previo a su colocación con mortero cemento-arena 1:4. Herramienta, mano de obra y todo lo necesario para su correcta ejecución. | E27: Pza | F27: 1
A28: - | B28: Subcapítulo | C28: 6.- | D28: INSTALACIONES ELECTRICAS
B29: Concepto | C29: IE-02U | D29: Salida eléctrica para tomacorriente, incluye; Contacto doble, tapa, poliducto eléctrico, cableado, ranurado, sujeción de poliducto, mano de obra y equipo. | E29: Sal | F29: 1
B30: Concepto | C30: IE-03U | D30: Salida eléctrica para apagador sencillo, incluye: tapa de una via, poliducto eléctrico naranja reforzado de 1/2", cableado con cable thw #12, ranurado, resanado con mortero cemento-arena 1:4, sujeción de poliducto, mano de obra y equipo. | E30: Sal | F30: 1
B31: Concepto | C31: IE-05U | D31: Salida eléctrica para lámpara, incluye; la roseta de porcelana de 4" , cableado con cable thw #12, caja octogonal de 4", con poliducto naranja reforzado de 1/2", cableado, ranurado, resanado con mortero cemento arena 1:4, sujeción de poliducto, mano de obra y equipo. | E31: Sal | F31: 1
B32: Concepto | C32: IE-06U | D32: Suministro de foco fluorescente espiral 23 w. De luz fria con 100 W de iluminacion según proyecto, | E32: Pza | F32: 1

Sheet datos (hidden)
A1: NUMERO
A2: LOCALIDAD
A3: MUNICIPIO
A4: ACCIONES | B4: 137
A6: F.INICIO | G6: =+G5+1 -> 1 | H6: =CHAR(G6) -> 
A7: F.TERMINO | B7: =IF(+B6="","",+B6+B8-1) ->  | G7: =+G6+1 -> 2 | H7: =CHAR(G7) -> 
A8: PLAZO | B8: =5*30 -> 150 | G8: =+G7+1 -> 3 | H8: =CHAR(G8) -> 
A9: DESCRIPCION | B9: MONTAJE DE 137(CIENTO TREINTA Y SIETE) RECAMARA ADICIONALES DE 16.65 M2 URBANA A BASE DE MODULOS PREFABRICADOS , TECHO DE LAMINA GALVANIZADA E INSTALACIONES ELÉCTRICAS, EN VARIAS LOCALIDADES DE LOS MUNICIPIOS DE ALAMOS, BACUM, HUATABAMPO, MAGDALENA, MAZATAN, SAN MIGUEL DE HORCASITAS Y URES DEL ESTADO DE SONORA.
A10: F. PRESENTACION

Sheet OPUS (hidden)
A1: Capítulo | B1: - | D1: CONSTRUCCIÓN DE UNIDAD BASICA DE VIVIENDA URBANA DE 42.53 M2, A BASE DE LOSA DE CIMENTACIÓN, MUROS DE BLOCK, TECHO DE VIGUETA Y BOVEDILLA, INSTALACIONES ELÉCTRICAS, HIDRÁULICAS Y SANITARIAS. EN EL MUNICIPIO DE __________ SONORA. | H1: =SUM(H3:H50) -> 116459.57
A2: Subcapítulo | B2: - | C2: 1.- | D2: LOSA DE CIMENTACION
A3: Concepto | C3: PC-01U | D3: Limpia, trazo y nivelación. | E3: M2 | F3: 22.09 | G3: 12.82 | H3: =+F3*G3 -> 283.19
A4: Concepto | C4: PC-02U | D4: Excavación a mano en terreno investigado en obra, cualquier profundidad, incluye afine de taludes y acarreo fuera de la obra de material no utilizable. | E4: M3 | F4: 0.36 | G4: 139.97 | H4: =+F4*G4 -> 50.39
A5: Concepto | C5: PC-05U | D5: Losa de Cimentación de 9 cm de espesor, a base de concreto F'c=200 kg/cm2; t.m.a. 3/4" hecho en obra; reforzado con malla electrosoldada 6x6-10/10, plantilla de 5 cm de espesor a base de concreto F'c=100 kg/cm2 t.m.a. 3/4", dentellón perimetral e intermedio a base de armex de 15x20 cm; anclaje a base de bastones con varilla corrugada 3/8" grado 42 o 5/16 DA 6000 @ 30 con 40 cm de largo donde se indique en los planos de proyecto, acabado pulido, incluye: fumigacion antitermitas con fumigante aditivo adherente termidor o similar, curado, vibrado, colado y todo lo necesario para su correcta ejecución. | E5: M2 | F5: 22.09 | G5: 515.16 | H5: 11379.88
A6: Concepto | C6: PC-06U | D6: Impermeabilización a base de producto epóxico color negro aplicado sobre los 12 cm del desplante y 9 cm del espesor de la losa en todo el perímetro, incluye: materiales, mano de obra, herramienta y equipo necesarios para su correcta ejecución. | E6: Ml | F6: 22.14 | G6: 32.47 | H6: 718.89
A7: Concepto | C7: PC-07U | D7: Afine, nivelacion y compactacion de terreno natural para desplante de losa de cimentacio, incluye todo lo necesario para su correcta ejecucion. | E7: M2 | F7: 22.09 | G7: 15.55 | H7: 343.5
A8: Subcapítulo | B8: - | C8: 2.- | D8: ALBAÑILERIA | H8: 0
A9: Concepto | C9: MC-01U | D9: Construcción de muro de block de 12x20x40 cm junteado con mortero cemento arena proporción 1:4, incluye; plomeado, relleno de huecos en contorno de ventanas a base de concreto F´c= 150 kg/cm2 hecho en obra t.m.a. 3/4", materiales, mano de obra, herramienta, equipo, deberá quedar acabado comun. | E9: M2 | F9: 34.57 | G9: 349.96 | H9: 12098.12
A10: Concepto | C10: MC-02U | D10: Castillo K-1 de concreto F´c=150 kg/cm2 hecho en obra t.m.a. 3/4", 12x12 cm de sección, armado con armex 12x12-4; incluye: cimbra aparente y descimbra; fabricación, colado y curado del concreto; materiales y mano de obra, deberá de quedar con acabado final aparente. | E10: Ml | F10: 19.7 | G10: 177.62 | H10: 3499.11
A11: Concepto | C11: MC-02UA | D11: Castillo K-2 ahogados de 2.50 ML de altura incluye el pretil, con concreto F´c=150 kg/cm2 hecho en obra t.m.a. 3/4", con una varilla corrugada de refuerzo de 3/8"; armado, colado y vibrado del concreto; materiales y mano de obra,. | E11: Ml | F11: 7.03 | G11: 52.92 | H11: 372.03
A12: Concepto | C12: MC-08U | D12: Cadena intermedia ubicada a la quinta hilada a base block dala de 12x20x40 cms, relleno con concreto F'c=150 kg/cm2 y una varilla corrugada de 3/8" el concepto incluye block dala de 12x20x40 cms, mortero cemento -arena 1:4, materiales, mano de obra, herramienta, equipo y todo lo necesario para su correcta ejecucion. | E12: ml | F12: 19.47 | G12: 145.17 | H12: 2826.46
A13: Concepto | C13: MC-03U | D13: Cadena de cerramiento de concreto F´c=150 kg/cm2 hecho en obra t.m.a. 3/4", 12x20 cm de sección, armada con armex 12X20-4; incluye: cimbra aparente y descimbra; fabricación, colado y curado del concreto; materiales y mano de obra, deberá de quedar con acabado final aparente. | E13: Ml | F13: 22.14 | G13: 222.33 | H13: 4922.39
A14: Concepto | C14: MC-09U | D14: Construcción de muro de enrase a base de block de 12x20x40 cm junteado con mortero cemento arena proporción 1:4, incluye; materiales, mano de obra, herramienta, equipo, deberá quedar acabado comun. | E14: M2 | F14: 5.6 | G14: 415.8 | H14: 2328.48
A15: Concepto | C15: MC-04U | D15: Construcción de pretil a base de block de 12x20x40 cm junteado con mortero cemento arena proporción 1:4, incluye; plomeado, relleno de huecos en parte superior y en parte inferior para nivelar con concreto F´c= 150 kg/cm2 hecho en obra t.m.a. 3/4", materiales, mano de obra, herramienta, equipo, con boquilla cortada a hueso. | E15: M2 | F15: 1.2 | G15: 396.58 | H15: 475.9
A16: Concepto | C16: AC-01U | D16: Chaflán de 10x10 cms. con pasta de cemento-arena prop. 1:4, según detalle indicado en los planos, Incluye: Material, mano de obra, herramienta y todo lo necesario para su correcta ejecución. | E16: ML | F16: 13.11 | G16: 80.45 | H16: 1054.7
A17: Concepto | C17: MC-07U | D17: Fabricacion de base para tinaco de 750 litros a base de concreto F'c=150 kg/cm de 1.00 x 1.00 mts por espesor variable de 10 cms a 14 cms el concepto incluye cimbra, descimbra, curado, vibrado y acabado pulido para recibir impermeabilizacion y todo lo necesario para su correcto funcionamiento. | E17: pza | F17: 1 | G17: 921.81 | H17: 921.81
A18: Subcapítulo | B18: - | C18: 3.- | D18: CUBIERTA | H18: 0
A19: Concepto | C19: CU-01U | D19: Losa aligerada de 15 cm de espesor, a base de bovedilla de poliestireno con densidad de 12 kg/m3 y vigueta de alma abierta con armadura de acero diseño 10-36 de la marca deacero o similar, con patín de 12 cm de ancho por 5 cm de peralte, colado de capa de compresión variable de 7 a 4 cms con concreto F'c=200 kg/cm2, t.m.a. 3/4", reforzado malla electrosoldada de 6x6-10/10, el concepto incluye: afine de la superficie superior con acabado semipulido para recibir impermeabilización, cimbra y descimbraaparente, colado, vibrado, curado y todo lo necesario para su correcta ejecución. | E19: M2 | F19: 23.4 | G19: 609.92 | H19: 14272.13
A20: Concepto | C20: CU-02U | D20: Impermeabilización de losa de azotea a base de impermeabilizante elastomerico de 3 años de garantía,a razón de 1 m2/lt, y tela de refuerzo doble, incluye limpieza y preparación de la superficie. | E20: M2 | F20: 23.4 | G20: 80.69 | H20: 1888.15
A21: Subcapítulo | B21: - | C21: 4.- | D21: ACABADOS | H21: 0
A22: Concepto | C22: AC-02U | D22: Sardinel de 10x10 cm a base de concreto hidráulico de F'c=150 kg/cm2 t.m.a. 3/4". Incluye: Herramienta, mano de obra y todo lo necesario para su correcta ejecución. | E22: Ml | F22: 1.26 | G22: 48 | H22: 60.48
A23: Concepto | C23: AC-03U | D23: Aplanado de yeso en plafones, de 1.5 cm de espesor promedio, a plomo y regla, acabado pulido, reforzada con malla pollera en toda el área incluye: perfilado de aristas y remate en columnas, trabes y muros. | E23: M2 | F23: 19.44 | G23: 202.72 | H23: 3940.88
A24: Concepto | C24: AC-04U | D24: Suministro y colocación de azulejo de 20x30cm de color blanco asentado con cemento crest o similar, boquilla de 2 mm a base de junta crest anti-hongo o similar. Incluye: Herramienta, mano de obra y todo lo necesario para su correcta ejecución. | E24: M2 | F24: 6.19 | G24: 410.65 | H24: 2541.92
A25: Concepto | C25: AC-05U | D25: Suministro y colocación de piso antiderrapante de 20x20cm de color blanco de la marca porcelanite o similar asentado con cemento crest o similar, boquilla de 2 mm a base de junta crest anti-hongo o similar. Incluye: Herramienta, mano de obra y todo lo necesario para su correcta ejecución. | E25: M2 | F25: 3.33 | G25: 421.57 | H25: 1403.83
A26: Concepto | C26: AC-13UA | D26: Aplanado grueso en muros exteriores e interiroes a base de mortero cemento arena 1:4 en un espesor minimo de 1.5 cms , y terminado fino floteado con mortero cemento-arena 1:3 incluye: perfilado de aristas, remates, material, mano de obra y emboquillado. | E26: m2 | F26: 99.36 | G26: 130.64 | H26: 12980.39
A27: Concepto | C27: AC-14U | D27: Pintura vinílica lavable en muros exteriores, interiores y plafond de yeso, incluye: material, limpieza, rebabeado, preparación de la superficie, aplicación de sellador vinílico y dos manos de pintura. | E27: M2 | F27: 118.8 | G27: 34.11 | H27: 4052.27
A28: Subcapítulo | B28: - | C28: 5.- | D28: PUERTAS Y VENTANAS | H28: 0
A29: Concepto | C29: PV-01U | D29: Suministro e instalación de puerta de 0.90x2.06 mts, tipo multypanel lisa, fabricado con hoja de acero liso galvanizado cal. 28, con bastidor de madera de pino estufado, terminado en color blanco, relleno de esouma rigida de poliuretano con una densidad de 32 a 34 kg/m3 .,incluye marco metálico de 0.96x2.10m fabricado a base de perfil tubular M-225, chapa tipo bola con llave para exterior modelo MH52T3 marca fanal o similar acabado en latón brillante para exterior, dos bisagras de 3", pintura esmalte anticorrosivo color blanco, perfilado del hueco previo a su colocación con mortero cemento-arena 1:4. Herramienta, mano de obra y todo lo necesario para su correcta ejecución. | E29: Pza | F29: 1 | G29: 3179.97 | H29: 3179.97
A30: Concepto | C30: PV-03U | D30: Suministro e instalación de puerta de tambor 0.70x2.06m con marco metálico de 0.76x2.10m fabricado a base de perfil tubular M-225., chapa tipo bola para interior marca fanal o similar, dos bisagras de 3", pintura esmalte anticorrosivo color blanco en el marco metálico, el concepto incluye perfilado del hueco previo a su colocación con mortero cemento-arena 1:4. Incluye: Herramienta, mano de obra y todo lo necesario para su correcta ejecución. | E30: Pza | F30: 1 | G30: 1773.91 | H30: 1773.91
A31: Concepto | C31: PV-04U | D31: Suministro y colocación de ventana corrediza de 0.83x1.05m a base de perfil de aluminio anodizado natural de 1 1/2" con cristal claro de 3mm con un fijo lateral y un corredizo, incluye: perfilado del hueco, previo a su colocación a base de mortero cemento-arena proporción 1:4. silicon, Herramienta, mano de obra y todo lo necesario para su correcta ejecución. | E31: Pza | F31: 1 | G31: 1313 | H31: 1313
A32: Concepto | C32: PV-05U | D32: Suministro y colocación de ventana corrediza de 0.60x0.40 m a base de perfil de aluminio anodizado natural de 1 1/2" con cristal claro de 3mm con un fijo lateral y un corredizo, incluye: perfilado del hueco, previo a su colocación a base de mortero cemento-arena proporción 1:4. silicon, Herramienta, mano de obra y todo lo necesario para su correcta ejecución. | E32: Pza | F32: 1 | G32: 915.37 | H32: 915.37
A33: Concepto | C33: PV-06U | D33: Suministro e instalación de puerta de lamina troquelada cal. 20 de 0.80 x 2.06 mts. Incluye: marco metálico de 0.86x2.10m fabricado a base de perfil tubular M-225., chapa con llave para exterior acabado en latón brillante para exterior, dos bisagras de 3", pintura esmalte anticorrosivo color blanco en el marco metálico, el concepto incluye perfilado del hueco previo a su colocación con mortero cemento-arena 1:4. Incluye: Herramienta, mano de obra y todo lo necesario para su correcta ejecución. | E33: Pza | F33: 1 | G33: 2131.09 | H33: 2131.09
A34: Subcapítulo | B34: - | C34: 6.- | D34: INSTALACIONES ELECTRICAS | H34: 0
A35: Concepto | C35: IE-01U | D35: Suministro y colocación de centro de carga de dos circuitos con dos piezas de interruptor sencillo de 1x30 amperes, tubería galvanizada conduit pared delgada de 3/4", el concepto incluye ranurado, resanado con mortero cemento-arena 1:4, prueba del correcto funcionamiento de las instalaciones y todo lo necesario para su correcto funcionamiento. | E35: Pza | F35: 1 | G35: 551.73 | H35: 551.73
A36: Concepto | C36: IE-02U | D36: Salida eléctrica para tomacorriente, incluye; Contacto doble, tapa, poliducto eléctrico, cableado, ranurado, sujeción de poliducto, mano de obra y equipo. | E36: Sal | F36: 5 | G36: 391.15 | H36: 1955.75
A37: Concepto | C37: IE-03U | D37: Salida eléctrica para apagador sencillo, incluye: tapa de una via, poliducto eléctrico naranja reforzado de 1/2", cableado con cable thw #12, ranurado, resanado con mortero cemento-arena 1:4, sujeción de poliducto, mano de obra y equipo. | E37: Sal | F37: 1 | G37: 436.13 | H37: 436.13
A38: Concepto | C38: IE-04U | D38: Salida eléctrica para apagador doble, incluye; tapa de dos vías, poliducto eléctrico naranja reforzado de 1/2", cableado con cable thw #12, ranurado, resanado con mortero cemento-arena 1:4, sujeción de poliducto, mano de obra y equipo. | E38: Sal | F38: 2 | G38: 452.25 | H38: 904.5
A39: Concepto | C39: IE-05U | D39: Salida eléctrica para lámpara, incluye; cableado con cable thw #12, caja octogonal de 4", con poliducto naranja reforzado de 1/2", cableado, ranurado, resanado con mortero cemento arena 1:4, sujeción de poliducto, mano de obra y equipo. | E39: Sal | F39: 5 | G39: 560.63 | H39: 2803.15
A40: Concepto | C40: IE-06U | D40: Suministro de foco fluorescente espiral 23 w. De luz fria con 100 W de iluminacion según proyecto, | E40: Pza | F40: 5 | G40: 54.17 | H40: 270.85
A41: Subcapítulo | B41: - | C41: 7.- | D41: INSTALACIONES HIDRÁULICAS Y SANITARIAS | H41: 0
A42: Concepto | C42: IHS-01U | D42: Salidas para instalación sanitaria de 1 1/2", 2" y 4" para ventila, lavabo, sanitario, tarja, lavadero y regadera, a base de tubería de pvc, conexiones, pegamento, ranurado, resanado con mortero cemento-arena 1:4, pendiente, el concepto incluye la conexión de registro a registro con tubería pvc sanitaria de 4", materiales, mano de obra, herramienta y equipo. | E42: Sal | F42: 6 | G42: 540.37 | H42: 3242.22
A43: Concepto | C43: IHS-02U | D43: Salidas para instalación hidráulica para regadera agua fría y caliente, lavabo, sanitario, tarja o zinc, lavadero con tubería cpvc de 1/2" marca duralon o similar, el concepto incluye: limpieza, conexiones, ranurado, pendiente, materiales, mano de obra, herramienta, equipo, resanado con mortero cemento-arena 1:4, prueba del correcto funcionamiento de las instalaciones y todo lo necesario para su correcto funcionamiento. | E43: Sal | F43: 6 | G43: 559.92 | H43: 3359.52
A44: Concepto | C44: IHS-03U | D44: Suministro e instalación de sanitario línea económica en color blanco, incluye asiento, pijas, cuello de cera, manguera flexible, llave cromada de 1/2". | E44: Pza | F44: 1 | G44: 1764.34 | H44: 1764.34
A45: Concepto | C45: IHS-04U | D45: Suministro e instalación de lavabo marca lamosa o similar línea económica en color blanco, incluye: Llave mezcladora marca helvex o similar línea económica, patas, soportes, manguera flexible, llave cromada de 1/2", cespol bote. | E45: Pza | F45: 1 | G45: 2099.33 | H45: 2099.33
A46: Concepto | C46: IHS-05U | D46: Suministro e instalación de regadera línea económica incluye brazo y chapetón. | E46: Pza | F46: 1 | G46: 183.02 | H46: 183.02
A47: Concepto | C47: IHS-06U | D47: Construcción de registro sanitario de 46x46cm de medida interna por 45 cms de profundidad, a base de ladrillo recocido común de la región de 7x14x28 cm, junteado con mortero cal-arena 1:5 + 10% de cemento, base y tapa a base de concreto F'c=150 kg/cm2 con t.m.a. 3/4" reforzado con malla electrosoldada 6x6-10/10 el concepto incluye: enjarre interior con mortero cemento-arena 1:3, fabricación y colocación de dos jaladeras para la tapa a base de alambrón de 1/4", con pases a base de poliducto de 1/2". y todo lo necesario para su correcta ejecución. | E47: Pza | F47: 2 | G47: 1121.41 | H47: 2242.82
A48: Concepto | C48: IHS-07U | D48: Suministro e instalación de tinaco de 750 lt para garantizar una vida útil de 30 años, con todos los accesorios como jarro de aire, flotador #5, válvula de llenado ¾", multiconector con válvula de esfera, tuerca unión y válvula check, incluye base para nivelar tinaco (detalle plano), la alimentación hidráulica por medio de tubería cpvc de 1/2" y todo lo necesario para su correcto funcionamiento. | E48: Pza | F48: 1 | G48: 3105.31 | H48: 3105.31
A49: Concepto | C49: IHS-08U | D49: Suministro e instalación de lavadero doble de empotrar, el concepto incluye; firme de concreto sencillo, murete de block de 12x20x40 cm, llave de jardín de 1/2", resanado con mortero cemento-arena 1:4 y todo lo necesario para su correcto funcionamiento. | E49: Pza | F49: 1 | G49: 1812.66 | H49: 1812.66

Sheet OPUS2 (hidden)
A1: Capítulo | B1: - | D1: CONSTRUCCIÓN DE UNIDAD BASICA DE VIVIENDA URBANA DE 42.38 M2, A BASE DE LOSA DE CIMENTACIÓN, MUROS DE BLOCK, TECHO DE VIGUETA Y BOVEDILLA, INSTALACIONES ELÉCTRICAS, HIDRÁULICAS Y SANITARIAS. EN LOS MUNICIPIOS DEL ESTADO DE SONORA.
A2: Subcapítulo | B2: - | C2: 1.- | D2: LOSA DE CIMENTACION
A3: Concepto | C3: PC-01U | D3: Limpia, trazo y nivelación. | E3: M2 | F3: 42.38
A4: Concepto | C4: PC-02U | D4: Excavación a mano en terreno investigado en obra, cualquier profundidad, incluye afine de taludes y acarreo fuera de la obra de material no utilizable. | E4: M3 | F4: 0.63
A5: Concepto | C5: PC-05U | D5: Losa de Cimentación de 9 cm de espesor, a base de concreto F'c=200 kg/cm2; t.m.a. 3/4" hecho en obra; reforzado con malla electrosoldada 6x6-10/10, dentellón perimetral e intermedio a base de armex de 15x20 cm; anclaje a base de bastones con varilla corrugada 3/8" grado 42 o 5/16 DA 6000 @ 30 con 40 cm de largo donde se indique en los planos de proyecto, acabado pulido, incluye: curado, vibrado, colado y todo lo necesario para su correcta ejecución. | E5: M2 | F5: 42.38
A6: Concepto | C6: PC-06U | D6: Impermeabilización a base de producto epóxico color negro aplicado sobre los 12 cm del desplante incluye: materiales, mano de obra, herramienta y equipo necesarios para su correcta ejecución. | E6: Ml | F6: 22.2
A7: Subcapítulo | B7: - | C7: 2.- | D7: ALBAÑILERIA
A8: Concepto | C8: MC-01U | D8: Construcción de muro de block de 12x20x40 cm junteado con mortero cemento arena proporción 1:4, incluye; Muro de enrase, plomeado, relleno de huecos en contorno de ventanas a base de concreto F´c= 150 kg/cm2 hecho en obra t.m.a. 3/4", materiales, mano de obra, herramienta, equipo, deberá quedar acabado comun. | E8: M2 | F8: 78.87
A9: Concepto | C9: MC-02U | D9: Castillo K-1 de concreto F´c=150 kg/cm2 hecho en obra t.m.a. 3/4", 12x12 cm de sección, armado con armex 12x12-4; incluye: cimbra aparente y descimbra; fabricación, colado y curado del concreto; materiales y mano de obra, deberá de quedar con acabado final aparente. | E9: Ml | F9: 26.51
A10: Concepto | C10: MC-02UA | D10: Castillo K-2 ahogados de 2.50 ML de altura incluye el pretil, con concreto F´c=150 kg/cm2 hecho en obra t.m.a. 3/4", con una varilla corrugada de refuerzo de 3/8"; armado, colado y vibrado del concreto; materiales y mano de obra,. | E10: Ml | F10: 16.93
A11: Concepto | C11: MC-03U | D11: Cadena de cerramiento de concreto F´c=200 kg/cm2 hecho en obra t.m.a. 3/4", 12x20 cm de sección, armada con armex 12X20-4; incluye: cimbra aparente y descimbra; fabricación, colado y curado del concreto; materiales y mano de obra, deberá de quedar con acabado final aparente. | E11: Ml | F11: 38.9
A12: Concepto | C12: MC-07U | D12: Fabricacion de base para tinaco de 450 litros a base de concreto F'c=150 kg/cm de 1.00 x 1.00 mts por espesor variable de 10 cms a 14 cms el concepto incluye cimbra, descimbra, curado, vibrado y acabado pulido para recibir impermeabilizacion y todo lo necesario para su correcto funcionamiento. | E12: pza | F12: 1
A13: Subcapítulo | B13: - | C13: 3.- | D13: CUBIERTA
A14: Concepto | C14: CU-01U | D14: Losa aligerada de 15 cm de espesor, con pendiente de 3.35%, a base de bovedilla de poliestireno y vigueta de alma abierta con armadura de acero diseño 10-36 de la marca deacero o similar, con patín de 12 cm de ancho por 5 cm de peralte, colado de capa de compresión de 4 cms con concreto F'c=200 kg/cm2, t.m.a. 3/4", reforzado malla electrosoldada de 6x6-10/10, el concepto incluye: afine de la superficie superior con acabado semipulido para recibir impermeabilización, cimbra y descimbra aparente, colado, vibrado, curado y todo lo necesario para su correcta ejecución. Para la ejecución de este concepto el beneficiario aportara el importe de 10,600 pesos en la compra de los materiales alambre recocido, curacreto, malla electrosoldada 6x6 - 10/10, Vigueta alma abierta con armadura 10-36 y Bovedilla de poliestireno de 61x122 x11 cms de espesor el concepto incluye un volado de 10 cms x 10 cms reforzado con una varilla corrugada de 3/8" y bastones de 40 cms a cada 30 cms; ademas se debera de colocar tuino de 1" para formar gotero. | E14: M2 | F14: 43.06
A15: Concepto | C15: CU-02U | D15: Impermeabilización de losa de azotea a base de impermeabilizante elastomerico de 3 años de garantía,a razón de 1 m2/lt, y tela de refuerzo sencillo, incluye limpieza y preparación de la superficie. | E15: M2 | F15: 43.06
A16: Subcapítulo | B16: - | C16: 4.- | D16: ACABADOS
A17: Concepto | C17: AC-02U | D17: Sardinel de 10x10 cm a base de concreto hidráulico de F'c=150 kg/cm2 t.m.a. 3/4". Incluye: Herramienta, mano de obra y todo lo necesario para su correcta ejecución. | E17: Ml | F17: 1.92
A18: Concepto | C18: AC-03U | D18: Aplanado de yeso en plafones, de 1.5 cm de espesor promedio, a plomo y regla, acabado pulido, reforzada con malla pollera en toda el área incluye: perfilado de aristas y remate en columnas, trabes y muros. | E18: M2 | F18: 37.73
A19: Concepto | C19: AC-04U | D19: Suministro y colocación de azulejo de 20x30cm de color blanco en area humeda de regadera detallado en los numeros generadores, asentado con cemento crest o similar, boquilla de 2 mm a base de junta crest anti-hongo o similar. Incluye: Herramienta, mano de obra y todo lo necesario para su correcta ejecución. | E19: M2 | F19: 4.01
A20: Concepto | C20: AC-05U | D20: Suministro y colocación de piso antiderrapante de 20x20cm de color blanco de la marca porcelanite o similar en area de baño indicado en los numeros generadores , asentado con cemento crest o similar, boquilla de 2 mm a base de junta crest anti-hongo o similar. Incluye: Herramienta, mano de obra y todo lo necesario para su correcta ejecución. | E20: M2 | F20: 4.04
A21: Concepto | C21: AC-13UA | D21: Aplanado grueso en muros exteriores a base de mortero cemento arena 1:4 en un espesor minimo de 1 cms , y terminado fino floteado con mortero cemento-arena 1:3 incluye: perfilado de aristas, remates, material, mano de obra y emboquillado. | E21: m2 | F21: 64.69
A22: Concepto | C22: AC-13UB | D22: Aplanado de mezcla en muros interiroes del tipo repellado, a base de mortero cemento arena 1:3, acabado fino floteado , incluye: material, mano de obra, remates y emboquillado. | E22: m2 | F22: 112.07
A23: Concepto | C23: AC-14U | D23: Pintura vinílica lavable en colores rosa o blanca (pantone 503c) en interiores, en muros exteriores se usa color blanca, para los rodapies, aleros y contorno de puertas se usara color rojo pantone 200C, incluye: material, limpieza, rebabeado, preparación de la superficie, aplicación de sellador vinílico y dos manos de pintura. | E23: M2 | F23: 215.85
A24: Subcapítulo | B24: - | C24: 5.- | D24: PUERTAS Y VENTANAS
A25: Concepto | C25: PV-01U | D25: Suministro e instalación de puerta de 0.90x2.06 mts, tipo multypanel lisa, fabricado con hoja de acero liso galvanizado cal. 28, con bastidor de madera de pino estufado, terminado en color blanco, relleno de esouma rigida de poliuretano con una densidad de 32 a 34 kg/m3 .,incluye marco metálico de 0.96x2.10m fabricado a base de perfil tubular M-225, chapa tipo bola con llave para exterior modelo MH52T3 marca fanal o similar acabado en latón brillante para exterior, dos bisagras de 3", pintura esmalte anticorrosivo color blanco, perfilado del hueco previo a su colocación con mortero cemento-arena 1:4. Herramienta, mano de obra y todo lo necesario para su correcta ejecución. | E25: Pza | F25: 1
A26: Concepto | C26: PV-02U | D26: Suministro e instalación de puerta de tambor 0.80x2.06m con marco metálico de 0.86x2.10m fabricado a base de perfil tubular M-225., chapa tipo bola para interior marca fanal o similar, dos bisagras de 3", pintura esmalte anticorrosivo color blanco en el marco metálico, el concepto incluye perfilado del hueco previo a su colocación con mortero cemento-arena 1:4. Incluye: Herramienta, mano de obra y todo lo necesario para su correcta ejecución. | E26: Pza | F26: 2
A27: Concepto | C27: PV-03U | D27: Suministro e instalación de puerta de tambor 0.70x2.06m con marco metálico de 0.76x2.10m fabricado a base de perfil tubular M-225., chapa tipo bola para interior marca fanal o similar, dos bisagras de 3", pintura esmalte anticorrosivo color blanco en el marco metálico, el concepto incluye perfilado del hueco previo a su colocación con mortero cemento-arena 1:4. Incluye: Herramienta, mano de obra y todo lo necesario para su correcta ejecución. | E27: Pza | F27: 1
A28: Concepto | C28: PV-06U | D28: Suministro e instalación de puerta de 0.80x2.06 mts, tipo multypanel lisa, fabricado con hoja de acero liso galvanizado cal. 28, con bastidor de madera de pino estufado, terminado en color blanco, relleno de esouma rigida de poliuretano con una densidad de 32 a 34 kg/m3 .,incluye marco metálico de 0.86x2.10m fabricado a base de perfil tubular M-225, chapa tipo bola con llave para exterior modelo MH52T3 marca fanal o similar acabado en latón brillante para exterior, dos bisagras de 3", pintura esmalte anticorrosivo color blanco, perfilado del hueco previo a su colocación con mortero cemento-arena 1:4. Herramienta, mano de obra y todo lo necesario para su correcta ejecución. | E28: Pza | F28: 1
A29: Concepto | C29: PV-04U | D29: Suministro y colocación de ventana corrediza de 0.83x1.05m a base de perfil de aluminio anodizado natural de 1 1/2" con cristal claro de 3mm con un fijo lateral y un corredizo, incluye: perfilado del hueco, previo a su colocación a base de mortero cemento-arena proporción 1:4. silicon, Herramienta, mano de obra y todo lo necesario para su correcta ejecución. | E29: Pza | F29: 3
A30: Concepto | C30: PV-05U | D30: Suministro y colocación de ventana corrediza de 0.60x0.40 m a base de perfil de aluminio anodizado natural de 1 1/2" con cristal claro de 3mm con un fijo lateral y un corredizo, incluye: perfilado del hueco, previo a su colocación a base de mortero cemento-arena proporción 1:4. silicon, Herramienta, mano de obra y todo lo necesario para su correcta ejecución. | E30: Pza | F30: 1
A31: Subcapítulo | B31: - | C31: 6.- | D31: INSTALACIONES ELECTRICAS
A32: Concepto | C32: IE-01U | D32: Suministro y colocación de centro de carga de dos circuitos con una pieza de interruptor sencillo de 1x30 amperes, tubería galvanizada conduit pared delgada de 3/4", el concepto incluye ranurado, resanado con mortero cemento-arena 1:4, prueba del correcto funcionamiento de las instalaciones y todo lo necesario para su correcto funcionamiento. | E32: Pza | F32: 1
A33: Concepto | C33: IE-02U | D33: Salida eléctrica para tomacorriente, incluye; Contacto doble, tapa, poliducto eléctrico, cableado, ranurado, sujeción de poliducto, mano de obra y equipo. | E33: Sal | F33: 9
A34: Concepto | C34: IE-03U | D34: Salida eléctrica para apagador sencillo, incluye: tapa de una via, poliducto eléctrico naranja reforzado de 1/2", cableado con cable thw #12, ranurado, resanado con mortero cemento-arena 1:4, sujeción de poliducto, mano de obra y equipo. | E34: Sal | F34: 3
A35: Concepto | C35: IE-04U | D35: Salida eléctrica para apagador doble, incluye; tapa de dos vías, poliducto eléctrico naranja reforzado de 1/2", cableado con cable thw #12, ranurado, resanado con mortero cemento-arena 1:4, sujeción de poliducto, mano de obra y equipo. | E35: Sal | F35: 2
A36: Concepto | C36: IE-05U | D36: Salida eléctrica para lámpara, incluye; cableado con cable thw #12, caja octogonal de 4", con poliducto naranja reforzado de 1/2", cableado, ranurado, resanado con mortero cemento arena 1:4, sujeción de poliducto, mano de obra y equipo. | E36: Sal | F36: 7
A37: Concepto | C37: IE-06U | D37: Suministro de foco fluorescente espiral 23 w. De luz fria con 100 W de iluminacion según proyecto, | E37: Pza | F37: 7
A38: Subcapítulo | B38: - | C38: 7.- | D38: INSTALACIONES HIDRÁULICAS Y SANITARIAS
A39: Concepto | C39: IHS-01U | D39: Salidas para instalación sanitaria de 1 1/2", 2" y 4" para ventila, lavabo, sanitario, tarja y regadera, tubería de pvc, conexiones, pegamento, ranurado, resanado con mortero cemento-arena 1:4, pendiente, materiales, mano de obra, herramienta y equipo. | E39: Sal | F39: 5
A40: Concepto | C40: IHS-02U | D40: Salidas para instalación hidráulica para regadera agua fría y caliente, lavabo, sanitario, tarja o zinc, con tubería cpvc de 1/2" marca duralon o similar, el concepto incluye: limpieza, conexiones, ranurado, pendiente, materiales, mano de obra, herramienta, equipo, resanado con mortero cemento-arena 1:4, prueba del correcto funcionamiento de las instalaciones y todo lo necesario para su correcto funcionamiento. | E40: Sal | F40: 5
A41: Concepto | C41: IHS-03U | D41: Suministro e instalación de sanitario línea económica en color blanco, incluye asiento, pijas, cuello de cera, manguera flexible, llave cromada de 1/2". | E41: Pza | F41: 1
A42: Concepto | C42: IHS-04U | D42: Suministro e instalación de lavabo marca lamosa o similar línea económica en color blanco, incluye: Llave mezcladora marca helvex o similar línea económica, patas, soportes, manguera flexible, llave cromada de 1/2", cespol bote. | E42: Pza | F42: 1
A43: Concepto | C43: IHS-05U | D43: Suministro e instalación de regadera línea económica incluye brazo y chapetón. | E43: Pza | F43: 1
A44: Concepto | C44: IHS-06U | D44: Construcción de registro sanitario de 46x46cm de medida interna por 45 cms de profundidad, a base de ladrillo recocido común de la región de 7x14x28 cm, junteado con mortero cal-arena 1:5 + 10% de cemento, base y tapa a base de concreto F'c=150 kg/cm2 con t.m.a. 3/4" reforzado con malla electrosoldada 6x6-10/10 el concepto incluye: enjarre interior con mortero cemento-arena 1:3, fabricación y colocación de dos jaladeras para la tapa a base de alambrón de 1/4", con pases a base de poliducto de 1/2". y todo lo necesario para su correcta ejecución. | E44: Pza | F44: 2
A45: Concepto | C45: IHS-07U | D45: Suministro e instalación de tinaco de 450 lt para garantizar una vida útil de 30 años, con todos los accesorios como jarro de aire, flotador #5, válvula de llenado ¾", multiconector con válvula de esfera, tuerca unión y válvula check, incluye base para nivelar tinaco (detalle plano), la alimentación hidráulica por medio de tubería cpvc de 1/2" y todo lo necesario para su correcto funcionamiento. | E45: Pza | F45: 1
A46: Concepto | C46: IHS-08U | D46: Suministro e instalación de lavadero doble de empotrar, el concepto incluye; firme de concreto sencillo, murete de block de 12x20x40 cm, la salida sanitaria con tubería pvc de 2" y la salida hidráulica con tubería cpvc de 1/2", llave de jardín de 1/2", resanado con mortero cemento-arena 1:4 y todo lo necesario para su correcto funcionamiento. | E46: Pza | F46: 1

Sheet Hoja5 (hidden)
A1: Capítulo | B1: - | D1: CONSTRUCCIÓN DE UNIDAD BASICA DE VIVIENDA URBANA DE 42.53 M2, A BASE DE LOSA DE CIMENTACIÓN, MUROS DE BLOCK, TECHO DE VIGUETA Y BOVEDILLA, INSTALACIONES ELÉCTRICAS, HIDRÁULICAS Y SANITARIAS. EN EL MUNICIPIO DE __________ SONORA. | H1: 190000
A2: Subcapítulo | B2: + | C2: 1.- | D2: LOSA DE CIMENTACION | H2: 24251.71 | I2: =+datos!$B$4 -> 137 | J2: =+H2*I2 -> 3322484.27 | K2: =+'F-22 CATAL'!G16 -> 0 | L2: =+J2-K2 -> 3322484.27
A3: Subcapítulo | B3: + | C3: 2.- | D3: ALBAÑILERIA | H3: 49801.83 | I3: =+datos!$B$4 -> 137 | J3: =+H3*I3 -> 6822850.71 | K3: =+'F-22 CATAL'!#REF! ->  | L3: =+J3-K3 -> 
A4: Subcapítulo | B4: + | C4: 3.- | D4: CUBIERTA | H4: 30958.93 | I4: =+datos!$B$4 -> 137 | J4: 4241373.41 | K4: =+'F-22 CATAL'!#REF! -> 
A5: Subcapítulo | B5: + | C5: 4.- | D5: ACABADOS | H5: 41948.26 | I5: =+datos!$B$4 -> 137 | J5: 5746911.62 | K5: =+'F-22 CATAL'!G33 -> 0 | L5: 5746911.62
A6: Subcapítulo | B6: + | C6: 5.- | D6: PUERTAS Y VENTANAS | H6: 15718.43 | I6: =+datos!$B$4 -> 137 | J6: 2153424.91 | K6: =+'F-22 CATAL'!G43 -> 0 | L6: 2153424.91
A7: Subcapítulo | B7: + | C7: 6.- | D7: INSTALACIONES ELECTRICAS | H7: 9961.4 | I7: =+datos!$B$4 -> 137 | J7: 1364711.8 | K7: =+'F-22 CATAL'!#REF! -> 
A8: Subcapítulo | B8: + | C8: 7.- | D8: INSTALACIONES HIDRÁULICAS Y SANITARIAS | H8: 17359.44 | I8: =+datos!$B$4 -> 137 | J8: 2378243.28 | K8: =+'F-22 CATAL'!#REF! -> 
J10: =SUM(J2:J9) -> 26030000 | K10: =SUM(K2:K9) -> 

Sheet OPUSS2 (hidden)
A1: Capítulo | B1: - | D1: CONSTRUCCIÓN DE UNIDAD BASICA DE VIVIENDA URBANA DE 42.53 M2, A BASE DE LOSA DE CIMENTACIÓN, MUROS DE BLOCK, TECHO DE VIGUETA Y BOVEDILLA, INSTALACIONES ELÉCTRICAS, HIDRÁULICAS Y SANITARIAS. EN EL MUNICIPIO DE __________ SONORA.
A2: Subcapítulo | B2: - | C2: 1.- | D2: LOSA DE CIMENTACION
A3: Concepto | C3: PC-01U | D3: Limpia, trazo y nivelación. | E3: M2 | F3: 22.09
A4: Concepto | C4: PC-02U | D4: Excavación a mano en terreno investigado en obra, cualquier profundidad, incluye afine de taludes y acarreo fuera de la obra de material no utilizable. | E4: M3 | F4: 0.36
A5: Concepto | C5: PC-05U | D5: Losa de Cimentación de 9 cm de espesor, a base de concreto F'c=200 kg/cm2; t.m.a. 3/4" hecho en obra; reforzado con malla electrosoldada 6x6-10/10, plantilla de 5 cm de espesor a base de concreto F'c=100 kg/cm2 t.m.a. 3/4", dentellón perimetral e intermedio a base de armex de 15x20 cm; anclaje a base de bastones con varilla corrugada 3/8" grado 42 o 5/16 DA 6000 @ 30 con 40 cm de largo donde se indique en los planos de proyecto, acabado pulido, incluye: fumigacion antitermitas con fumigante aditivo adherente termidor o similar, curado, vibrado, colado y todo lo necesario para su correcta ejecución. | E5: M2 | F5: 22.09
A6: Concepto | C6: PC-06U | D6: Impermeabilización a base de producto epóxico color negro aplicado sobre los 12 cm del desplante y 9 cm del espesor de la losa en todo el perímetro, incluye: materiales, mano de obra, herramienta y equipo necesarios para su correcta ejecución. | E6: Ml | F6: 22.14
A7: Concepto | C7: PC-07U | D7: Afine, nivelacion y compactacion de terreno natural para desplante de losa de cimentacio, incluye todo lo necesario para su correcta ejecucion. | E7: M2 | F7: 22.09
A8: Subcapítulo | B8: - | C8: 2.- | D8: ALBAÑILERIA
A9: Concepto | C9: MC-01U | D9: Construcción de muro de block de 12x20x40 cm junteado con mortero cemento arena proporción 1:4, incluye; plomeado, relleno de huecos en contorno de ventanas a base de concreto F´c= 150 kg/cm2 hecho en obra t.m.a. 3/4", materiales, mano de obra, herramienta, equipo, deberá quedar acabado comun. | E9: M2 | F9: 34.57
A10: Concepto | C10: MC-02U | D10: Castillo K-1 de concreto F´c=150 kg/cm2 hecho en obra t.m.a. 3/4", 12x12 cm de sección, armado con armex 12x12-4; incluye: cimbra aparente y descimbra; fabricación, colado y curado del concreto; materiales y mano de obra, deberá de quedar con acabado final aparente. | E10: Ml | F10: 19.7
A11: Concepto | C11: MC-02UA | D11: Castillo K-2 ahogados de 2.50 ML de altura incluye el pretil, con concreto F´c=150 kg/cm2 hecho en obra t.m.a. 3/4", con una varilla corrugada de refuerzo de 3/8"; armado, colado y vibrado del concreto; materiales y mano de obra,. | E11: Ml | F11: 7.03
A12: Concepto | C12: MC-08U | D12: Cadena intermedia ubicada a la quinta hilada a base block dala de 12x20x40 cms, relleno con concreto F'c=150 kg/cm2 y una varilla corrugada de 3/8" el concepto incluye block dala de 12x20x40 cms, mortero cemento -arena 1:4, materiales, mano de obra, herramienta, equipo y todo lo necesario para su correcta ejecucion. | E12: ml | F12: 19.47
A13: Concepto | C13: MC-03U | D13: Cadena de cerramiento de concreto F´c=150 kg/cm2 hecho en obra t.m.a. 3/4", 12x20 cm de sección, armada con armex 12X20-4; incluye: cimbra aparente y descimbra; fabricación, colado y curado del concreto; materiales y mano de obra, deberá de quedar con acabado final aparente. | E13: Ml | F13: 22.14
A14: Concepto | C14: MC-09U | D14: Construcción de muro de enrase a base de block de 12x20x40 cm junteado con mortero cemento arena proporción 1:4, incluye; materiales, mano de obra, herramienta, equipo, deberá quedar acabado comun. | E14: M2 | F14: 5.6
A15: Concepto | C15: MC-04U | D15: Construcción de pretil a base de block de 12x20x40 cm junteado con mortero cemento arena proporción 1:4, incluye; plomeado, relleno de huecos en parte superior y en parte inferior para nivelar con concreto F´c= 150 kg/cm2 hecho en obra t.m.a. 3/4", materiales, mano de obra, herramienta, equipo, con boquilla cortada a hueso. | E15: M2 | F15: 1.2
A16: Concepto | C16: AC-01U | D16: Chaflán de 10x10 cms. con pasta de cemento-arena prop. 1:4, según detalle indicado en los planos, Incluye: Material, mano de obra, herramienta y todo lo necesario para su correcta ejecución. | E16: ML | F16: 13.11
A17: Concepto | C17: MC-07U | D17: Fabricacion de base para tinaco de 750 litros a base de concreto F'c=150 kg/cm de 1.00 x 1.00 mts por espesor variable de 10 cms a 14 cms el concepto incluye cimbra, descimbra, curado, vibrado y acabado pulido para recibir impermeabilizacion y todo lo necesario para su correcto funcionamiento. | E17: pza | F17: 1
A18: Subcapítulo | B18: - | C18: 3.- | D18: CUBIERTA
A19: Concepto | C19: CU-01U | D19: Losa aligerada de 15 cm de espesor, con pendiente de 3.35%, a base de bovedilla de poliestireno y vigueta de alma abierta con armadura de acero diseño 10-36 de la marca deacero o similar, con patín de 12 cm de ancho por 5 cm de peralte, colado de capa de compresión de 4 cms con concreto F'c=200 kg/cm2, t.m.a. 3/4", reforzado malla electrosoldada de 6x6-10/10, el concepto incluye: afine de la superficie superior con acabado semipulido para recibir impermeabilización, cimbra y descimbra aparente, colado, vibrado, curado y todo lo necesario para su correcta ejecución. el concepto incluye un volado de 20 cms x 10 cms reforzado con una varilla corrugada de 3/8" y bastones de 40 cms a cada 30 cms; ademas se debera de colocar tuino de 1" para formar gotero. | E19: M2 | F19: 23.4
A20: Concepto | C20: CU-02U | D20: Impermeabilización de losa de azotea a base de impermeabilizante elastomerico de 3 años de garantía,a razón de 1 m2/lt, y tela de refuerzo doble, incluye limpieza y preparación de la superficie. | E20: M2 | F20: 23.4
A21: Subcapítulo | B21: - | C21: 4.- | D21: ACABADOS
A22: Concepto | C22: AC-02U | D22: Sardinel de 10x10 cm a base de concreto hidráulico de F'c=150 kg/cm2 t.m.a. 3/4". Incluye: Herramienta, mano de obra y todo lo necesario para su correcta ejecución. | E22: Ml | F22: 1.26
A23: Concepto | C23: AC-03U | D23: Aplanado de yeso en plafones, de 1.5 cm de espesor promedio, a plomo y regla, acabado pulido, reforzada con malla pollera en toda el área incluye: perfilado de aristas y remate en columnas, trabes y muros. | E23: M2 | F23: 19.44
A24: Concepto | C24: AC-04U | D24: Suministro y colocación de azulejo de 20x30cm de color blanco asentado con cemento crest o similar, boquilla de 2 mm a base de junta crest anti-hongo o similar. Incluye: Herramienta, mano de obra y todo lo necesario para su correcta ejecución. | E24: M2 | F24: 6.19
A25: Concepto | C25: AC-05U | D25: Suministro y colocación de piso antiderrapante de 20x20cm de color blanco de la marca porcelanite o similar asentado con cemento crest o similar, boquilla de 2 mm a base de junta crest anti-hongo o similar. Incluye: Herramienta, mano de obra y todo lo necesario para su correcta ejecución. | E25: M2 | F25: 3.33
A26: Concepto | C26: AC-13UA | D26: Aplanado grueso en muros exteriores e interiroes a base de mortero cemento arena 1:4 en un espesor minimo de 1.5 cms , y terminado fino floteado con mortero cemento-arena 1:3 incluye: perfilado de aristas, remates, material, mano de obra y emboquillado. | E26: m2 | F26: 99.36
A27: Concepto | C27: AC-14U | D27: Pintura vinílica lavable en muros exteriores, interiores y plafond de yeso, incluye: material, limpieza, rebabeado, preparación de la superficie, aplicación de sellador vinílico y dos manos de pintura. | E27: M2 | F27: 118.8
A28: Subcapítulo | B28: - | C28: 5.- | D28: PUERTAS Y VENTANAS
A29: Concepto | C29: PV-01U | D29: Suministro e instalación de puerta de 0.90x2.06 mts, tipo multypanel lisa, fabricado con hoja de acero liso galvanizado cal. 28, con bastidor de madera de pino estufado, terminado en color blanco, relleno de esouma rigida de poliuretano con una densidad de 32 a 34 kg/m3 .,incluye marco metálico de 0.96x2.10m fabricado a base de perfil tubular M-225, chapa tipo bola con llave para exterior modelo MH52T3 marca fanal o similar acabado en latón brillante para exterior, dos bisagras de 3", pintura esmalte anticorrosivo color blanco, perfilado del hueco previo a su colocación con mortero cemento-arena 1:4. Herramienta, mano de obra y todo lo necesario para su correcta ejecución. | E29: Pza | F29: 1
A30: Concepto | C30: PV-03U | D30: Suministro e instalación de puerta de tambor 0.70x2.06m con marco metálico de 0.76x2.10m fabricado a base de perfil tubular M-225., chapa tipo bola para interior marca fanal o similar, dos bisagras de 3", pintura esmalte anticorrosivo color blanco en el marco metálico, el concepto incluye perfilado del hueco previo a su colocación con mortero cemento-arena 1:4. Incluye: Herramienta, mano de obra y todo lo necesario para su correcta ejecución. | E30: Pza | F30: 1
A31: Concepto | C31: PV-04U | D31: Suministro y colocación de ventana corrediza de 0.83x1.05m a base de perfil de aluminio anodizado natural de 1 1/2" con cristal claro de 3mm con un fijo lateral y un corredizo, incluye: perfilado del hueco, previo a su colocación a base de mortero cemento-arena proporción 1:4. silicon, Herramienta, mano de obra y todo lo necesario para su correcta ejecución. | E31: Pza | F31: 1
A32: Concepto | C32: PV-05U | D32: Suministro y colocación de ventana corrediza de 0.60x0.40 m a base de perfil de aluminio anodizado natural de 1 1/2" con cristal claro de 3mm con un fijo lateral y un corredizo, incluye: perfilado del hueco, previo a su colocación a base de mortero cemento-arena proporción 1:4. silicon, Herramienta, mano de obra y todo lo necesario para su correcta ejecución. | E32: Pza | F32: 1
A33: Concepto | C33: PV-06U | D33: Suministro e instalación de puerta de lamina troquelada cal. 20 de 0.80 x 2.06 mts. Incluye: marco metálico de 0.86x2.10m fabricado a base de perfil tubular M-225., chapa con llave para exterior acabado en latón brillante para exterior, dos bisagras de 3", pintura esmalte anticorrosivo color blanco en el marco metálico, el concepto incluye perfilado del hueco previo a su colocación con mortero cemento-arena 1:4. Incluye: Herramienta, mano de obra y todo lo necesario para su correcta ejecución. | E33: Pza | F33: 1
A34: Subcapítulo | B34: - | C34: 6.- | D34: INSTALACIONES ELECTRICAS
A35: Concepto | C35: IE-01U | D35: Suministro y colocación de centro de carga de dos circuitos con dos piezas de interruptor sencillo de 1x30 amperes, tubería galvanizada conduit pared delgada de 3/4", el concepto incluye ranurado, resanado con mortero cemento-arena 1:4, prueba del correcto funcionamiento de las instalaciones y todo lo necesario para su correcto funcionamiento. | E35: Pza | F35: 1
A36: Concepto | C36: IE-02U | D36: Salida eléctrica para tomacorriente, incluye; Contacto doble, tapa, poliducto eléctrico, cableado, ranurado, sujeción de poliducto, mano de obra y equipo. | E36: Sal | F36: 5
A37: Concepto | C37: IE-03U | D37: Salida eléctrica para apagador sencillo, incluye: tapa de una via, poliducto eléctrico naranja reforzado de 1/2", cableado con cable thw #12, ranurado, resanado con mortero cemento-arena 1:4, sujeción de poliducto, mano de obra y equipo. | E37: Sal | F37: 1
A38: Concepto | C38: IE-04U | D38: Salida eléctrica para apagador doble, incluye; tapa de dos vías, poliducto eléctrico naranja reforzado de 1/2", cableado con cable thw #12, ranurado, resanado con mortero cemento-arena 1:4, sujeción de poliducto, mano de obra y equipo. | E38: Sal | F38: 2
A39: Concepto | C39: IE-05U | D39: Salida eléctrica para lámpara, incluye; cableado con cable thw #12, caja octogonal de 4", con poliducto naranja reforzado de 1/2", cableado, ranurado, resanado con mortero cemento arena 1:4, sujeción de poliducto, mano de obra y equipo. | E39: Sal | F39: 5
A40: Concepto | C40: IE-06U | D40: Suministro de foco fluorescente espiral 23 w. De luz fria con 100 W de iluminacion según proyecto, | E40: Pza | F40: 5
A41: Subcapítulo | B41: - | C41: 7.- | D41: INSTALACIONES HIDRÁULICAS Y SANITARIAS
A42: Concepto | C42: IHS-01U | D42: Salidas para instalación sanitaria de 1 1/2", 2" y 4" para ventila, lavabo, sanitario, tarja, lavadero y regadera, a base de tubería de pvc, conexiones, pegamento, ranurado, resanado con mortero cemento-arena 1:4, pendiente, el concepto incluye la conexión de registro a registro con tubería pvc sanitaria de 4", materiales, mano de obra, herramienta y equipo. | E42: Sal | F42: 6
A43: Concepto | C43: IHS-02U | D43: Salidas para instalación hidráulica para regadera agua fría y caliente, lavabo, sanitario, tarja o zinc, lavadero con tubería cpvc de 1/2" marca duralon o similar, el concepto incluye: limpieza, conexiones, ranurado, pendiente, materiales, mano de obra, herramienta, equipo, resanado con mortero cemento-arena 1:4, prueba del correcto funcionamiento de las instalaciones y todo lo necesario para su correcto funcionamiento. | E43: Sal | F43: 6
A44: Concepto | C44: IHS-03U | D44: Suministro e instalación de sanitario línea económica en color blanco, incluye asiento, pijas, cuello de cera, manguera flexible, llave cromada de 1/2". | E44: Pza | F44: 1
A45: Concepto | C45: IHS-04U | D45: Suministro e instalación de lavabo marca lamosa o similar línea económica en color blanco, incluye: Llave mezcladora marca helvex o similar línea económica, patas, soportes, manguera flexible, llave cromada de 1/2", cespol bote. | E45: Pza | F45: 1
A46: Concepto | C46: IHS-05U | D46: Suministro e instalación de regadera línea económica incluye brazo y chapetón. | E46: Pza | F46: 1
A47: Concepto | C47: IHS-06U | D47: Construcción de registro sanitario de 46x46cm de medida interna por 45 cms de profundidad, a base de ladrillo recocido común de la región de 7x14x28 cm, junteado con mortero cal-arena 1:5 + 10% de cemento, base y tapa a base de concreto F'c=150 kg/cm2 con t.m.a. 3/4" reforzado con malla electrosoldada 6x6-10/10 el concepto incluye: enjarre interior con mortero cemento-arena 1:3, fabricación y colocación de dos jaladeras para la tapa a base de alambrón de 1/4", con pases a base de poliducto de 1/2". y todo lo necesario para su correcta ejecución. | E47: Pza | F47: 2
A48: Concepto | C48: IHS-07U | D48: Suministro e instalación de tinaco de 750 lt para garantizar una vida útil de 30 años, con todos los accesorios como jarro de aire, flotador #5, válvula de llenado ¾", multiconector con válvula de esfera, tuerca unión y válvula check, incluye base para nivelar tinaco (detalle plano), la alimentación hidráulica por medio de tubería cpvc de 1/2" y todo lo necesario para su correcto funcionamiento. | E48: Pza | F48: 1
A49: Concepto | C49: IHS-08U | D49: Suministro e instalación de lavadero doble de empotrar, el concepto incluye; firme de concreto sencillo, murete de block de 12x20x40 cm, llave de jardín de 1/2", resanado con mortero cemento-arena 1:4 y todo lo necesario para su correcto funcionamiento. | E49: Pza | F49: 1

Sheet Hoja6 (hidden)
A1: Capítulo | B1: - | D1: CONSTRUCCIÓN DE PIE DE CASA 22.09 M2, A BASE DE LOSA DE CIMENTACIÓN, MUROS DE BLOCK, TECHO DE VIGUETA Y BOVEDILLA, INSTALACIONES ELÉCTRICAS, HIDRÁULICAS Y SANITARIAS. EN EL MUNICIPIO DE __________ SONORA. | H1: 116459.57
A2: Subcapítulo | B2: - | C2: 1.- | D2: LOSA DE CIMENTACION | H2: 12775.85
A3: Concepto | C3: PC-01U | D3: Limpia, trazo y nivelación. | E3: M2 | F3: 22.09 | G3: 12.82 | H3: 283.19
A4: Concepto | C4: PC-02U | D4: Excavación a mano en terreno investigado en obra, cualquier profundidad, incluye afine de taludes y acarreo fuera de la obra de material no utilizable. | E4: M3 | F4: 0.36 | G4: 139.97 | H4: 50.39
A5: Concepto | C5: PC-05U | D5: Losa de Cimentación de 9 cm de espesor, a base de concreto F'c=200 kg/cm2; t.m.a. 3/4" hecho en obra; reforzado con malla electrosoldada 6x6-10/10, plantilla de 5 cm de espesor a base de concreto F'c=100 kg/cm2 t.m.a. 3/4", dentellón perimetral e intermedio a base de armex de 15x20 cm; anclaje a base de bastones con varilla corrugada 3/8" grado 42 o 5/16 DA 6000 @ 30 con 40 cm de largo donde se indique en los planos de proyecto, acabado pulido, incluye: fumigacion antitermitas con fumigante aditivo adherente termidor o similar, curado, vibrado, colado y todo lo necesario para su correcta ejecución. | E5: M2 | F5: 22.09 | G5: 515.16 | H5: 11379.88
A6: Concepto | C6: PC-06U | D6: Impermeabilización a base de producto epóxico color negro aplicado sobre los 12 cm del desplante y 9 cm del espesor de la losa en todo el perímetro, incluye: materiales, mano de obra, herramienta y equipo necesarios para su correcta ejecución. | E6: Ml | F6: 22.14 | G6: 32.47 | H6: 718.89
A7: Concepto | C7: PC-07U | D7: Afine, nivelacion y compactacion de terreno natural para desplante de losa de cimentacio, incluye todo lo necesario para su correcta ejecucion. | E7: M2 | F7: 22.09 | G7: 15.55 | H7: 343.5
A8: Subcapítulo | B8: - | C8: 2.- | D8: ALBAÑILERIA | H8: 28499
A9: Concepto | C9: MC-01U | D9: Construcción de muro de block de 12x20x40 cm junteado con mortero cemento arena proporción 1:4, incluye; plomeado, relleno de huecos en contorno de ventanas a base de concreto F´c= 150 kg/cm2 hecho en obra t.m.a. 3/4", materiales, mano de obra, herramienta, equipo, deberá quedar acabado comun. | E9: M2 | F9: 34.57 | G9: 349.96 | H9: 12098.12
A10: Concepto | C10: MC-02U | D10: Castillo K-1 de concreto F´c=150 kg/cm2 hecho en obra t.m.a. 3/4", 12x12 cm de sección, armado con armex 12x12-4; incluye: cimbra aparente y descimbra; fabricación, colado y curado del concreto; materiales y mano de obra, deberá de quedar con acabado final aparente. | E10: Ml | F10: 19.7 | G10: 177.62 | H10: 3499.11
A11: Concepto | C11: MC-02UA | D11: Castillo K-2 ahogados de 2.50 ML de altura incluye el pretil, con concreto F´c=150 kg/cm2 hecho en obra t.m.a. 3/4", con una varilla corrugada de refuerzo de 3/8"; armado, colado y vibrado del concreto; materiales y mano de obra,. | E11: Ml | F11: 7.03 | G11: 52.92 | H11: 372.03
A12: Concepto | C12: MC-08U | D12: Cadena intermedia ubicada a la quinta hilada a base block dala de 12x20x40 cms, relleno con concreto F'c=150 kg/cm2 y una varilla corrugada de 3/8" el concepto incluye block dala de 12x20x40 cms, mortero cemento -arena 1:4, materiales, mano de obra, herramienta, equipo y todo lo necesario para su correcta ejecucion. | E12: ml | F12: 19.47 | G12: 145.17 | H12: 2826.46
A13: Concepto | C13: MC-03U | D13: Cadena de cerramiento de concreto F´c=150 kg/cm2 hecho en obra t.m.a. 3/4", 12x20 cm de sección, armada con armex 12X20-4; incluye: cimbra aparente y descimbra; fabricación, colado y curado del concreto; materiales y mano de obra, deberá de quedar con acabado final aparente. | E13: Ml | F13: 22.14 | G13: 222.33 | H13: 4922.39
A14: Concepto | C14: MC-09U | D14: Construcción de muro de enrase a base de block de 12x20x40 cm junteado con mortero cemento arena proporción 1:4, incluye; materiales, mano de obra, herramienta, equipo, deberá quedar acabado comun. | E14: M2 | F14: 5.6 | G14: 415.8 | H14: 2328.48
A15: Concepto | C15: MC-04U | D15: Construcción de pretil a base de block de 12x20x40 cm junteado con mortero cemento arena proporción 1:4, incluye; plomeado, relleno de huecos en parte superior y en parte inferior para nivelar con concreto F´c= 150 kg/cm2 hecho en obra t.m.a. 3/4", materiales, mano de obra, herramienta, equipo, con boquilla cortada a hueso. | E15: M2 | F15: 1.2 | G15: 396.58 | H15: 475.9
A16: Concepto | C16: AC-01U | D16: Chaflán de 10x10 cms. con pasta de cemento-arena prop. 1:4, según detalle indicado en los planos, Incluye: Material, mano de obra, herramienta y todo lo necesario para su correcta ejecución. | E16: ML | F16: 13.11 | G16: 80.45 | H16: 1054.7
A17: Concepto | C17: MC-07U | D17: Fabricacion de base para tinaco de 750 litros a base de concreto F'c=150 kg/cm de 1.00 x 1.00 mts por espesor variable de 10 cms a 14 cms el concepto incluye cimbra, descimbra, curado, vibrado y acabado pulido para recibir impermeabilizacion y todo lo necesario para su correcto funcionamiento. | E17: pza | F17: 1 | G17: 921.81 | H17: 921.81
A18: Subcapítulo | B18: - | C18: 3.- | D18: CUBIERTA | H18: 16160.28
A19: Concepto | C19: CU-01U | D19: Losa aligerada de 15 cm de espesor, a base de bovedilla de poliestireno con densidad de 12 kg/m3 y vigueta de alma abierta con armadura de acero diseño 10-36 de la marca deacero o similar, con patín de 12 cm de ancho por 5 cm de peralte, colado de capa de compresión variable de 7 a 4 cms con concreto F'c=200 kg/cm2, t.m.a. 3/4", reforzado malla electrosoldada de 6x6-10/10, el concepto incluye: afine de la superficie superior con acabado semipulido para recibir impermeabilización, cimbra y descimbraaparente, colado, vibrado, curado y todo lo necesario para su correcta ejecución. | E19: M2 | F19: 23.4 | G19: 609.92 | H19: 14272.13
A20: Concepto | C20: CU-02U | D20: Impermeabilización de losa de azotea a base de impermeabilizante elastomerico de 3 años de garantía,a razón de 1 m2/lt, y tela de refuerzo doble, incluye limpieza y preparación de la superficie. | E20: M2 | F20: 23.4 | G20: 80.69 | H20: 1888.15
A21: Subcapítulo | B21: - | C21: 4.- | D21: ACABADOS | H21: 24979.77
A22: Concepto | C22: AC-02U | D22: Sardinel de 10x10 cm a base de concreto hidráulico de F'c=150 kg/cm2 t.m.a. 3/4". Incluye: Herramienta, mano de obra y todo lo necesario para su correcta ejecución. | E22: Ml | F22: 1.26 | G22: 48 | H22: 60.48
A23: Concepto | C23: AC-03U | D23: Aplanado de yeso en plafones, de 1.5 cm de espesor promedio, a plomo y regla, acabado pulido, reforzada con malla pollera en toda el área incluye: perfilado de aristas y remate en columnas, trabes y muros. | E23: M2 | F23: 19.44 | G23: 202.72 | H23: 3940.88
A24: Concepto | C24: AC-04U | D24: Suministro y colocación de azulejo de 20x30cm de color blanco asentado con cemento crest o similar, boquilla de 2 mm a base de junta crest anti-hongo o similar. Incluye: Herramienta, mano de obra y todo lo necesario para su correcta ejecución. | E24: M2 | F24: 6.19 | G24: 410.65 | H24: 2541.92
A25: Concepto | C25: AC-05U | D25: Suministro y colocación de piso antiderrapante de 20x20cm de color blanco de la marca porcelanite o similar asentado con cemento crest o similar, boquilla de 2 mm a base de junta crest anti-hongo o similar. Incluye: Herramienta, mano de obra y todo lo necesario para su correcta ejecución. | E25: M2 | F25: 3.33 | G25: 421.57 | H25: 1403.83
A26: Concepto | C26: AC-13UA | D26: Aplanado grueso en muros exteriores e interiroes a base de mortero cemento arena 1:4 en un espesor minimo de 1.5 cms , y terminado fino floteado con mortero cemento-arena 1:3 incluye: perfilado de aristas, remates, material, mano de obra y emboquillado. | E26: m2 | F26: 99.36 | G26: 130.64 | H26: 12980.39
A27: Concepto | C27: AC-14U | D27: Pintura vinílica lavable en muros exteriores, interiores y plafond de yeso, incluye: material, limpieza, rebabeado, preparación de la superficie, aplicación de sellador vinílico y dos manos de pintura. | E27: M2 | F27: 118.8 | G27: 34.11 | H27: 4052.27
A28: Subcapítulo | B28: - | C28: 5.- | D28: PUERTAS Y VENTANAS | H28: 9313.34
A29: Concepto | C29: PV-01U | D29: Suministro e instalación de puerta de 0.90x2.06 mts, tipo multypanel lisa, fabricado con hoja de acero liso galvanizado cal. 28, con bastidor de madera de pino estufado, terminado en color blanco, relleno de esouma rigida de poliuretano con una densidad de 32 a 34 kg/m3 .,incluye marco metálico de 0.96x2.10m fabricado a base de perfil tubular M-225, chapa tipo bola con llave para exterior modelo MH52T3 marca fanal o similar acabado en latón brillante para exterior, dos bisagras de 3", pintura esmalte anticorrosivo color blanco, perfilado del hueco previo a su colocación con mortero cemento-arena 1:4. Herramienta, mano de obra y todo lo necesario para su correcta ejecución. | E29: Pza | F29: 1 | G29: 3179.97 | H29: 3179.97
A30: Concepto | C30: PV-03U | D30: Suministro e instalación de puerta de tambor 0.70x2.06m con marco metálico de 0.76x2.10m fabricado a base de perfil tubular M-225., chapa tipo bola para interior marca fanal o similar, dos bisagras de 3", pintura esmalte anticorrosivo color blanco en el marco metálico, el concepto incluye perfilado del hueco previo a su colocación con mortero cemento-arena 1:4. Incluye: Herramienta, mano de obra y todo lo necesario para su correcta ejecución. | E30: Pza | F30: 1 | G30: 1773.91 | H30: 1773.91
A31: Concepto | C31: PV-04U | D31: Suministro y colocación de ventana corrediza de 0.83x1.05m a base de perfil de aluminio anodizado natural de 1 1/2" con cristal claro de 3mm con un fijo lateral y un corredizo, incluye: perfilado del hueco, previo a su colocación a base de mortero cemento-arena proporción 1:4. silicon, Herramienta, mano de obra y todo lo necesario para su correcta ejecución. | E31: Pza | F31: 1 | G31: 1313 | H31: 1313
A32: Concepto | C32: PV-05U | D32: Suministro y colocación de ventana corrediza de 0.60x0.40 m a base de perfil de aluminio anodizado natural de 1 1/2" con cristal claro de 3mm con un fijo lateral y un corredizo, incluye: perfilado del hueco, previo a su colocación a base de mortero cemento-arena proporción 1:4. silicon, Herramienta, mano de obra y todo lo necesario para su correcta ejecución. | E32: Pza | F32: 1 | G32: 915.37 | H32: 915.37
A33: Concepto | C33: PV-06U | D33: Suministro e instalación de puerta de lamina troquelada cal. 20 de 0.80 x 2.06 mts. Incluye: marco metálico de 0.86x2.10m fabricado a base de perfil tubular M-225., chapa con llave para exterior acabado en latón brillante para exterior, dos bisagras de 3", pintura esmalte anticorrosivo color blanco en el marco metálico, el concepto incluye perfilado del hueco previo a su colocación con mortero cemento-arena 1:4. Incluye: Herramienta, mano de obra y todo lo necesario para su correcta ejecución. | E33: Pza | F33: 1 | G33: 2131.09 | H33: 2131.09
A34: Subcapítulo | B34: - | C34: 6.- | D34: INSTALACIONES ELECTRICAS | H34: 6922.11
A35: Concepto | C35: IE-01U | D35: Suministro y colocación de centro de carga de dos circuitos con dos piezas de interruptor sencillo de 1x30 amperes, tubería galvanizada conduit pared delgada de 3/4", el concepto incluye ranurado, resanado con mortero cemento-arena 1:4, prueba del correcto funcionamiento de las instalaciones y todo lo necesario para su correcto funcionamiento. | E35: Pza | F35: 1 | G35: 551.73 | H35: 551.73
A36: Concepto | C36: IE-02U | D36: Salida eléctrica para tomacorriente, incluye; Contacto doble, tapa, poliducto eléctrico, cableado, ranurado, sujeción de poliducto, mano de obra y equipo. | E36: Sal | F36: 5 | G36: 391.15 | H36: 1955.75
A37: Concepto | C37: IE-03U | D37: Salida eléctrica para apagador sencillo, incluye: tapa de una via, poliducto eléctrico naranja reforzado de 1/2", cableado con cable thw #12, ranurado, resanado con mortero cemento-arena 1:4, sujeción de poliducto, mano de obra y equipo. | E37: Sal | F37: 1 | G37: 436.13 | H37: 436.13
A38: Concepto | C38: IE-04U | D38: Salida eléctrica para apagador doble, incluye; tapa de dos vías, poliducto eléctrico naranja reforzado de 1/2", cableado con cable thw #12, ranurado, resanado con mortero cemento-arena 1:4, sujeción de poliducto, mano de obra y equipo. | E38: Sal | F38: 2 | G38: 452.25 | H38: 904.5
A39: Concepto | C39: IE-05U | D39: Salida eléctrica para lámpara, incluye; cableado con cable thw #12, caja octogonal de 4", con poliducto naranja reforzado de 1/2", cableado, ranurado, resanado con mortero cemento arena 1:4, sujeción de poliducto, mano de obra y equipo. | E39: Sal | F39: 5 | G39: 560.63 | H39: 2803.15
A40: Concepto | C40: IE-06U | D40: Suministro de foco fluorescente espiral 23 w. De luz fria con 100 W de iluminacion según proyecto, | E40: Pza | F40: 5 | G40: 54.17 | H40: 270.85
A41: Subcapítulo | B41: - | C41: 7.- | D41: INSTALACIONES HIDRÁULICAS Y SANITARIAS | H41: 17809.22
A42: Concepto | C42: IHS-01U | D42: Salidas para instalación sanitaria de 1 1/2", 2" y 4" para ventila, lavabo, sanitario, tarja, lavadero y regadera, a base de tubería de pvc, conexiones, pegamento, ranurado, resanado con mortero cemento-arena 1:4, pendiente, el concepto incluye la conexión de registro a registro con tubería pvc sanitaria de 4", materiales, mano de obra, herramienta y equipo. | E42: Sal | F42: 6 | G42: 540.37 | H42: 3242.22
A43: Concepto | C43: IHS-02U | D43: Salidas para instalación hidráulica para regadera agua fría y caliente, lavabo, sanitario, tarja o zinc y regadera con tubería cpvc de 1/2" marca duralon o similar, el concepto incluye: limpieza, conexiones, ranurado, pendiente, materiales, mano de obra, herramienta, equipo, resanado con mortero cemento-arena 1:4, prueba del correcto funcionamiento de las instalaciones y todo lo necesario para su correcto funcionamiento. | E43: Sal | F43: 6 | G43: 559.92 | H43: 3359.52
A44: Concepto | C44: IHS-03U | D44: Suministro e instalación de sanitario línea económica en color blanco, incluye asiento, pijas, cuello de cera, manguera flexible, llave cromada de 1/2". | E44: Pza | F44: 1 | G44: 1764.34 | H44: 1764.34
A45: Concepto | C45: IHS-04U | D45: Suministro e instalación de lavabo marca lamosa o similar línea económica en color blanco, incluye: Llave mezcladora marca helvex o similar línea económica, patas, soportes, manguera flexible, llave cromada de 1/2", cespol bote. | E45: Pza | F45: 1 | G45: 2099.33 | H45: 2099.33
A46: Concepto | C46: IHS-05U | D46: Suministro e instalación de regadera línea económica incluye brazo y chapetón. | E46: Pza | F46: 1 | G46: 183.02 | H46: 183.02
A47: Concepto | C47: IHS-06U | D47: Construcción de registro sanitario de 46x46cm de medida interna por 45 cms de profundidad, a base de ladrillo recocido común de la región de 7x14x28 cm, junteado con mortero cal-arena 1:5 + 10% de cemento, base y tapa a base de concreto F'c=150 kg/cm2 con t.m.a. 3/4" reforzado con malla electrosoldada 6x6-10/10 el concepto incluye: enjarre interior con mortero cemento-arena 1:3, fabricación y colocación de dos jaladeras para la tapa a base de alambrón de 1/4", con pases a base de poliducto de 1/2". y todo lo necesario para su correcta ejecución. | E47: Pza | F47: 2 | G47: 1121.41 | H47: 2242.82
A48: Concepto | C48: IHS-07U | D48: Suministro e instalación de tinaco de 750 lt para garantizar una vida útil de 30 años, con todos los accesorios como jarro de aire, flotador #5, válvula de llenado ¾", multiconector con válvula de esfera, tuerca unión y válvula check, incluye base para nivelar tinaco (detalle plano), la alimentación hidráulica por medio de tubería cpvc de 1/2" y todo lo necesario para su correcto funcionamiento. | E48: Pza | F48: 1 | G48: 3105.31 | H48: 3105.31
A49: Concepto | C49: IHS-08U | D49: Suministro e instalación de lavadero doble de empotrar, el concepto incluye; salida hidraulica y sanitaria firme de concreto sencillo, murete de block de 12x20x40 cm, llave de jardín de 1/2", resanado con mortero cemento-arena 1:4 y todo lo necesario para su correcto funcionamiento. | E49: Pza | F49: 1 | G49: 1812.66 | H49: 1812.66

Sheet Hoja7 (hidden)
A1: Capítulo | B1: - | D1: CONSTRUCCIÓN DE RECAMARA ADICIONAL DE 16.65 M2 URBANA | F1: 1 | G1: 69896.16 | H1: 69896.16 | I1: SESENTA Y NUEVE MIL OCHOCIENTOS NOVENTA Y SEIS PESOS 16/100 M.N.
A2: Subcapítulo | B2: - | D2: LOSA DE CIMENTACIÓN | F2: 1 | G2: 9892.37 | H2: 9892.37 | I2: NUEVE MIL OCHOCIENTOS NOVENTA Y DOS PESOS 37/100 M.N.
A3: Concepto | C3: PC-01U | D3: Limpia, trazo y nivelación. | E3: M2 | F3: 16.65 | G3: 12.81 | H3: 213.29 | I3: DOCE PESOS 81/100 M.N.
A4: Concepto | C4: PC-02U | D4: Excavación a mano en terreno investigado en obra, cualquier profundidad, incluye afine de taludes y acarreo fuera de la obra de material no utilizable. | E4: M3 | F4: 0.26 | G4: 139.97 | H4: 36.39 | I4: CIENTO TREINTA Y NUEVE PESOS 97/100 M.N.
A5: Concepto | C5: PC-05U | D5: Losa de Cimentación de 9 cm de espesor, a base de concreto F'c=200 kg/cm2; t.m.a. 3/4" hecho en obra; reforzado con malla electrosoldada 6x6-10/10, plantilla de 5 cm de espesor a base de concreto F'c=100 kg/cm2 t.m.a. 3/4", dentellón perimetral e intermedio a base de armex de 15x20 cm; anclaje a base de bastones con varilla corrugada 3/8" grado 42 o 5/16 DA 6000 @ 30 con 40 cm de largo donde se indique en los planos de proyecto, acabado pulido, incluye: fumigacion antitermitas con fumigante aditivo adherente termidor o similar, curado, vibrado, colado y todo lo necesario para su correcta ejecución. | E5: M2 | F5: 16.65 | G5: 537.31 | H5: 8946.21 | I5: QUINIENTOS TREINTA Y SIETE PESOS 31/100 M.N.
A6: Concepto | C6: PC-06U | D6: Impermeabilización a base de producto epóxico color negro aplicado sobre los 12 cm del desplante y 9 cm del espesor de la losa en todo el perímetro, incluye: materiales, mano de obra, herramienta y equipo necesarios para su correcta ejecución. | E6: Ml | F6: 13.98 | G6: 31.3 | H6: 437.57 | I6: TREINTA Y UN PESOS 30/100 M.N.
A7: Concepto | C7: PC-07U | D7: Afine, nivelacion y compactacion de terreno natural para desplante de losa de cimentacio, incluye todo lo necesario para su correcta ejecucion. | E7: M2 | F7: 16.65 | G7: 15.55 | H7: 258.91 | I7: QUINCE PESOS 55/100 M.N.
A8: Subcapítulo | B8: - | D8: ALBAÑILERIA | F8: 1 | G8: 17858.13 | H8: 17858.13 | I8: DIECISIETE MIL OCHOCIENTOS CINCUENTA Y OCHO PESOS 13/100 M.N.
A9: Concepto | C9: MC-01U | D9: Construcción de muro de block de 12x20x40 cm junteado con mortero cemento arena proporción 1:4, incluye; plomeado, relleno de huecos en contorno de ventanas a base de concreto F´c= 150 kg/cm2 hecho en obra t.m.a. 3/4", materiales, mano de obra, herramienta, equipo, deberá quedar acabado comun. | E9: M2 | F9: 32.06 | G9: 358.05 | H9: 11479.08 | I9: TRESCIENTOS CINCUENTA Y OCHO PESOS 05/100 M.N.
A10: Concepto | C10: MC-02U | D10: Castillo K-1 de concreto F´c=150 kg/cm2 hecho en obra t.m.a. 3/4", 12x12 cm de sección, armado con armex 12x12-4; incluye: cimbra aparente y descimbra; fabricación, colado y curado del concreto; materiales y mano de obra, deberá de quedar con acabado final aparente. | E10: Ml | F10: 9.06 | G10: 212.09 | H10: 1921.54 | I10: DOSCIENTOS DOCE PESOS 09/100 M.N.
A11: Concepto | C11: MC-02UA | D11: Castillo K-2 ahogados de 2.50 ML de altura incluye el pretil, con concreto F´c=150 kg/cm2 hecho en obra t.m.a. 3/4", con una varilla corrugada de refuerzo de 3/8"; armado, colado y vibrado del concreto; materiales y mano de obra,. | E11: Ml | F11: 9.09 | G11: 52.92 | H11: 481.04 | I11: CINCUENTA Y DOS PESOS 92/100 M.N.
A12: Concepto | C12: MC-03U | D12: Cadena de cerramiento de concreto F´c=200 kg/cm2 hecho en obra t.m.a. 3/4", 12x20 cm de sección, armada con armex 12X20-4; incluye: cimbra aparente y descimbra; fabricación, colado y curado del concreto; materiales y mano de obra, deberá de quedar con acabado final aparente. | E12: Ml | F12: 15.84 | G12: 251.04 | H12: 3976.47 | I12: DOSCIENTOS CINCUENTA Y UN PESOS 04/100 M.N.
A13: Subcapítulo | B13: - | D13: CUBIERTA | F13: 1 | G13: 13368.57 | H13: 13368.57 | I13: TRECE MIL TRESCIENTOS SESENTA Y OCHO PESOS 57/100 M.N.
A14: Concepto | C14: CU-01U | D14: Losa aligerada de 16 cm de espesor, a base de bovedilla de poliestireno con densidad de 12 kg/m3 y vigueta de alma abierta con armadura de acero diseño 10-36 de la marca deacero o similar, con patín de 12 cm de ancho por 5 cm de peralte, colado de capa de compresión 5 cms con concreto F'c=200 kg/cm2, t.m.a. 3/4", reforzado malla electrosoldada de 6x6-10/10, el concepto incluye: afine de la superficie superior con acabado semipulido para recibir impermeabilización, cimbra y descimbraaparente, colado, vibrado, curado y todo lo necesario para su correcta ejecución. | E14: M2 | F14: 17.26 | G14: 682.29 | H14: 11776.33 | I14: SEISCIENTOS OCHENTA Y DOS PESOS 29/100 M.N.
A15: Concepto | C15: CU-02U | D15: Impermeabilización de losa de azotea a base de impermeabilizante elastomerico de 3 años de garantía,a razón de 1 m2/lt, y tela de refuerzo doble, incluye limpieza y preparación de la superficie. | E15: M2 | F15: 17.26 | G15: 92.25 | H15: 1592.24 | I15: NOVENTA Y DOS PESOS 25/100 M.N.
A16: Subcapítulo | B16: - | D16: ACABADOS | F16: 1 | G16: 21355.56 | H16: 21355.56 | I16: VEINTIUN MIL TRESCIENTOS CINCUENTA Y CINCO PESOS 56/100 M.N.
A17: Concepto | C17: AC-01U | D17: Chaflán de 10x10 cms. con pasta de cemento-arena prop. 1:4, según detalle indicado en los planos, Incluye: Material, mano de obra, herramienta y todo lo necesario para su correcta ejecución. | E17: ML | F17: 12.02 | G17: 80.45 | H17: 967.01 | I17: OCHENTA PESOS 45/100 M.N.
A18: Concepto | C18: AC-03U | D18: Aplanado de yeso en plafones, de 1.5 cm de espesor promedio, a plomo y regla, acabado pulido, reforzada con malla pollera en toda el área incluye: perfilado de aristas y remate en columnas, trabes y muros. | E18: M2 | F18: 14.75 | G18: 218.75 | H18: 3226.56 | I18: DOSCIENTOS DIECIOCHO PESOS 75/100 M.N.
A19: Concepto | C19: AC-13UA | D19: Aplanado grueso en muros exteriores e interiroes a base de mortero cemento arena 1:4 en un espesor minimo de 1.5 cms , y terminado fino floteado con mortero cemento-arena 1:3 incluye: perfilado de aristas, remates, material, mano de obra y emboquillado. | E19: m2 | F19: 77.35 | G19: 181.26 | H19: 14020.46 | I19: CIENTO OCHENTA Y UN PESOS 26/100 M.N.
A20: Concepto | C20: AC-14U | D20: Pintura vinílica lavable en muros exteriores, interiores y plafond de yeso, incluye: material, limpieza, rebabeado, preparación de la superficie, aplicación de sellador vinílico y dos manos de pintura. | E20: M2 | F20: 92.1 | G20: 34.11 | H20: 3141.53 | I20: TREINTA Y CUATRO PESOS 11/100 M.N.
A21: Subcapítulo | B21: - | D21: PUERTAS Y VENTANAS | F21: 1 | G21: 4493.8 | H21: 4493.8 | I21: CUATRO MIL CUATROCIENTOS NOVENTA Y TRES PESOS 80/100 M.N.
A22: Concepto | C22: PV-01U | D22: Suministro e instalación de puerta de 0.90x2.06 mts, tipo multypanel lisa, fabricado con hoja de acero liso galvanizado cal. 28, con bastidor de madera de pino estufado, terminado en color blanco, relleno de esouma rigida de poliuretano con una densidad de 32 a 34 kg/m3 .,incluye marco metálico de 0.96x2.10m fabricado a base de perfil tubular M-225, chapa tipo bola con llave para exterior modelo MH52T3 marca fanal o similar acabado en latón brillante para exterior, dos bisagras de 3", pintura esmalte anticorrosivo color blanco, perfilado del hueco previo a su colocación con mortero cemento-arena 1:4. Herramienta, mano de obra y todo lo necesario para su correcta ejecución. | E22: Pza | F22: 1 | G22: 3179.76 | H22: 3179.76 | I22: TRES MIL CIENTO SETENTA Y NUEVE PESOS 76/100 M.N.
A23: Concepto | C23: PV-04U | D23: Suministro y colocación de ventana corrediza de 0.83x1.05m a base de perfil de aluminio anodizado natural de 1 1/2" con cristal claro de 3mm con un fijo lateral y un corredizo, incluye: perfilado del hueco, previo a su colocación a base de mortero cemento-arena proporción 1:4. silicon, Herramienta, mano de obra y todo lo necesario para su correcta ejecución. | E23: Pza | F23: 1 | G23: 1314.04 | H23: 1314.04 | I23: UN MIL TRESCIENTOS CATORCE PESOS 04/100 M.N.
A24: Subcapítulo | B24: - | D24: INSTALACIONES ELECTRICAS | F24: 1 | G24: 2927.73 | H24: 2927.73 | I24: DOS MIL NOVECIENTOS VEINTISIETE PESOS 73/100 M.N.
A25: Concepto | C25: IE-02U | D25: Salida eléctrica para tomacorriente, incluye; Contacto doble, tapa, poliducto eléctrico, cableado, ranurado, sujeción de poliducto, mano de obra y equipo. | E25: Sal | F25: 2 | G25: 391.12 | H25: 782.24 | I25: TRESCIENTOS NOVENTA Y UN PESOS 12/100 M.N.
A26: Concepto | C26: IE-04U | D26: Salida eléctrica para apagador doble, incluye; tapa de dos vías, poliducto eléctrico naranja reforzado de 1/2", cableado con cable thw #12, ranurado, resanado con mortero cemento-arena 1:4, sujeción de poliducto, mano de obra y equipo. | E26: Sal | F26: 1 | G26: 452.21 | H26: 452.21 | I26: CUATROCIENTOS CINCUENTA Y DOS PESOS 21/100 M.N.
A27: Concepto | C27: IE-05U | D27: Salida eléctrica para lámpara, incluye; cableado con cable thw #12, caja octogonal de 4", con poliducto naranja reforzado de 1/2", cableado, ranurado, resanado con mortero cemento arena 1:4, sujeción de poliducto, mano de obra y equipo. | E27: Sal | F27: 2 | G27: 560.59 | H27: 1121.18 | I27: QUINIENTOS SESENTA PESOS 59/100 M.N.
A28: Concepto | C28: IE-06U | D28: Suministro de foco fluorescente espiral 23 w. De luz fria con 100 W de iluminacion según proyecto, | E28: Pza | F28: 2 | G28: 53.97 | H28: 107.94 | I28: CINCUENTA Y TRES PESOS 97/100 M.N.
A29: Concepto | C29: IE-07U | D29: Alimentación eléctrica de la vivienda existente a la recamara adicional para una distancia maxima de 6 mts el concepto incluye; poliducto naranja reforzado, cable thw #12, prueba del funcionamiento de las instalaciones y todo lo necesario para su correcta ejecucion. | E29: Sal, | F29: 1 | G29: 464.16 | H29: 464.16 | I29: CUATROCIENTOS SESENTA Y CUATRO PESOS 16/100 M.N.

Sheet Hoja8 (hidden)
A1: Capítulo | B1: - | D1: CIMENTACIÓN | H1: 2937.88
A2: Concepto | C2: PC-13U | D2: Cadena de desplante armada con armex 12 X 20 - 4, anclada a piso existente con varillas roscada #3 @ 40 cm, reforzada con concreto F´C=200 KG/CM2, T.M.A.= 3/4" Incluye: mano de obra, herramientay todo lo necesario para su correcta ejecucion. | E2: ML | F2: 9.56 | G2: 307.31 | H2: 2937.88
A3: Capítulo | B3: - | D3: ALBAÑILERIA | H3: 14322.98
A4: Concepto | C4: MC-20U | D4: Demolicion de piso de 10 cm de espesor, incluye mano de obra y todo lo necesario para su correcta ejecucion. | E4: M2 | F4: 3 | G4: 112.76 | H4: 338.28
A5: Concepto | C5: MC-21U | D5: reposicion de piso de concreto de 10 cm de espesor, con concreto f´c= 150 kg/cm2 armado con malla electrosoldada 6-6 / 10-10, T.M.A. 3/4", incluye material, mano de obra y todo lo necesario para su correcta ejecucion. | E5: M2 | F5: 3 | G5: 443.96 | H5: 1331.88
A6: Concepto | C6: MC-01U | D6: Construcción de muro de block de 12x20x40 cm junteado con mortero cemento arena proporción 1:4, incluye; plomeado, relleno de huecos en contorno de ventanas a base de concreto F´c= 150 kg/cm2 hecho en obra t.m.a. 3/4", materiales, mano de obra, herramienta, equipo, deberá quedar acabado comun. | E6: M2 | F6: 29.6 | G6: 427.46 | H6: 12652.82
A7: Capítulo | B7: - | D7: ACABADOS | H7: 17921.57
A8: Concepto | C8: AC-03U | D8: Aplanado de yeso en plafones, de 1.5 cm de espesor promedio, a plomo y regla, acabado pulido, reforzada con malla pollera en toda el área incluye: perfilado de aristas y remate en columnas, trabes y muros. | E8: M2 | F8: 18.45 | G8: 235.95 | H8: 4353.28
A9: Concepto | C9: AC-13UA | D9: Aplanado grueso en muros exteriores e interiroes a base de mortero cemento arena 1:4 en un espesor minimo de 1.5 cms , y terminado fino floteado con mortero cemento-arena 1:3 incluye: perfilado de aristas, remates, material, mano de obra y emboquillado. | E9: m2 | F9: 36.66 | G9: 150.51 | H9: 5517.7
A10: Concepto | C10: AC-14U | D10: Pintura vinílica lavable en muros exteriores, interiores y plafond de yeso, incluye: material, limpieza, rebabeado, preparación de la superficie, aplicación de sellador vinílico y dos manos de pintura. | E10: M2 | F10: 36.66 | G10: 37.95 | H10: 1391.25
A11: Concepto | C11: AC-04U | D11: Suministro y colocación de azulejo de 20x30cm de color blanco asentado con cemento crest o similar, boquilla de 2 mm a base de junta crest anti-hongo o similar. Incluye: Herramienta, mano de obra y todo lo necesario para su correcta ejecución. | E11: M2 | F11: 5.67 | G11: 459.58 | H11: 2605.82
A12: Concepto | C12: AC-05U | D12: Suministro y colocación de piso antiderrapante de 20x20cm de color blanco de la marca porcelanite o similar asentado con cemento crest o similar, boquilla de 2 mm a base de junta crest anti-hongo o similar. Incluye: Herramienta, mano de obra y todo lo necesario para su correcta ejecución. | E12: M2 | F12: 8.6 | G12: 471.34 | H12: 4053.52
A13: Capítulo | B13: - | D13: INSTALACIONES ESPECIALES | H13: 10156.96
A14: Concepto | C14: IES-01 | D14: Suministro y colocacion de barra de seguridad de 70 cm, de acero inoxidable; incluye: barra de acero de 70 cm de longuitud, materia, mano de obra y todo lo necesario para su correcta ejecucion. | E14: Pza | F14: 3 | G14: 2040.51 | H14: 6121.53
A15: Concepto | C15: IES-02 | D15: Suministro de silla para persona con discapacidad para el area de regadera | E15: Pza | F15: 1 | G15: 4035.43 | H15: 4035.43
A16: Capítulo | B16: - | D16: PUERTAS Y VENTANAS | H16: 4631.63
A17: Concepto | C17: PV-20 | D17: Suministro e instalación de puerta de 1.16x2.06 mts, tipo multypanel lisa, fabricado con hoja de acero liso galvanizado cal. 28, con bastidor de madera de pino estufado, terminado en color blanco, relleno de espuma rigida de poliuretano con una densidad de 32 a 34 kg/m3 .,incluye marco metálico de 1.20x2.10m fabricado a base de perfil tubular M-225, chapa tipo palanca con llave para interior acabado en acero inoxidable, dos bisagras de 3", pintura esmalte anticorrosivo color blanco, perfilado del hueco previo a su colocación con mortero cemento-arena 1:4. Herramienta, mano de obra y todo lo necesario para su correcta ejecución. | E17: Pza | F17: 1 | G17: 3618.78 | H17: 3618.78
A18: Concepto | C18: PV-05U | D18: Suministro y colocación de ventana corrediza de 0.60x0.40 m a base de perfil de aluminio anodizado natural de 1 1/2" con cristal claro de 3mm con un fijo lateral y un corredizo, incluye: perfilado del hueco, previo a su colocación a base de mortero cemento-arena proporción 1:4. silicon, Herramienta, mano de obra y todo lo necesario para su correcta ejecución. | E18: Pza | F18: 1 | G18: 1012.85 | H18: 1012.85
A19: Capítulo | B19: - | D19: INSTALACIONES ELECTRICAS | H19: 3371.24
A20: Concepto | C20: IE-02 | D20: SALIDA ELÉCTRICA PARA TOMACORRIENTE, INCLUYE; CONTACTO DOBLE, TAPA, POLIDUCTO ELÉCTRICO, CABLEADO, RANURADO, SUJECIÓN DE POLIDUCTO, MANO DE OBRA Y EQUIPO. | E20: SAL | F20: 1 | G20: 444.96 | H20: 444.96
A21: Concepto | C21: IE-03 | D21: SALIDA ELÉCTRICA PARA APAGADOR SENCILLO, INCLUYE: TAPA DE UNA VIA, POLIDUCTO ELÉCTRICO NARANJA REFORZADO DE 1/2", CABLEADO CON CABLE THW #12, RANURADO, RESANADO CON MORTERO CEMENTO-ARENA 1:4, SUJECIÓN DE POLIDUCTO, MANO DE | E21: SAL | F21: 2 | G21: 499.1 | H21: 998.2
A22: Concepto | C22: IE-05 | D22: SALIDA ELÉCTRICA PARA LÁMPARA, INCLUYE; LA ROSETA DE PORCELANA DE 4"" , CABLEADO CON CABLE THW #12, CAJA OCTOGONAL DE 4"", CON POLIDUCTO NARANJA REFORZADO DE 1/2"", CABLEADO, RANURADO, RESANADO CON MORTERO CEMENTO ARENA 1:4, SUJECIÓN DE POLIDUCTO, MANO DE OBRA Y EQUIPO. | E22: SAL | F22: 2 | G22: 639.43 | H22: 1278.86
A23: Concepto | C23: IE-06 | D23: SUMINISTRO DE FOCO FLUORESCENTE ESPIRAL 23 W. DE LUZ FRIA CON 100 W DE ILUMINACION SEGÚN PROYECTO, | E23: PZA | F23: 2 | G23: 58.45 | H23: 116.9
A24: Concepto | C24: IE-07U | D24: Alimentación eléctrica de la vivienda existente a la recamara adicional para una distancia maxima de 6 mts el concepto incluye; poliducto naranja reforzado, cable thw #12, prueba del funcionamiento de las instalaciones y todo lo necesario para su correcta ejecucion. | E24: Sal, | F24: 1 | G24: 532.32 | H24: 532.32
A25: Capítulo | B25: - | D25: INSTALACIONES HIDRÁULICAS Y SANITARIAS | H25: 9435.84
A26: Concepto | C26: IHS-01U | D26: Salidas para instalación sanitaria de 1 1/2", 2" y 4" para ventila, lavabo, sanitario, tarja, lavadero y regadera, a base de tubería de pvc, conexiones, pegamento, ranurado, resanado con mortero cemento-arena 1:4, pendiente, el concepto incluye la conexión de registro a registro con tubería pvc sanitaria de 4", materiales, mano de obra, herramienta y equipo. | E26: Sal | F26: 4 | G26: 589.66 | H26: 2358.64
A27: Concepto | C27: IHS-02U | D27: Salidas para instalación hidráulica para regadera agua fría y caliente, lavabo, sanitario, tarja o zinc y regadera con tubería cpvc de 1/2" marca duralon o similar, el concepto incluye: limpieza, conexiones, ranurado, pendiente, materiales, mano de obra, herramienta, equipo, resanado con mortero cemento-arena 1:4, prueba del correcto funcionamiento de las instalaciones y todo lo necesario para su correcto funcionamiento. | E27: Sal | F27: 4 | G27: 630.93 | H27: 2523.72
A28: Concepto | C28: IHS-03U | D28: Suministro e instalación de sanitario línea económica en color blanco, incluye asiento, pijas, cuello de cera, manguera flexible, llave cromada de 1/2". | E28: Pza | F28: 1 | G28: 2065.01 | H28: 2065.01
A29: Concepto | C29: IHS-04U | D29: Suministro e instalación de lavabo marca lamosa o similar línea económica en color blanco, incluye: Llave mezcladora marca helvex o similar línea económica, patas, soportes, manguera flexible, llave cromada de 1/2", cespol bote. | E29: Pza | F29: 1 | G29: 2268.95 | H29: 2268.95
A30: Concepto | C30: IHS-05U | D30: Suministro e instalación de regadera línea económica incluye brazo y chapetón. | E30: Pza | F30: 1 | G30: 219.52 | H30: 219.52
G32: TOTAL | H32: =+H1+H3+H7+H13+H16+H19+H25 -> 62778.1

Sheet 2019 (hidden)
A1: Capítulo | B1: - | D1: CIMENTACIÓN
A2: Concepto | C2: PC-13U | D2: Cadena de desplante armada con armex 12 X 20 - 4, anclada a piso existente con varillas roscada #3 @ 40 cm, reforzada con concreto F´C=200 KG/CM2, T.M.A.= 3/4" Incluye: mano de obra, herramientay todo lo necesario para su correcta ejecucion. | E2: ML | F2: 9.56 | H2: =+F2*G2 -> 0
A3: Capítulo | B3: - | D3: ALBAÑILERIA | H3: =+F3*G3 -> 0
A4: Concepto | C4: MC-20U | D4: Demolicion de piso de 10 cm de espesor, incluye mano de obra y todo lo necesario para su correcta ejecucion. | E4: M2 | F4: 3 | H4: 0
A5: Concepto | C5: MC-21U | D5: reposicion de piso de concreto de 10 cm de espesor, con concreto f´c= 150 kg/cm2 armado con malla electrosoldada 6-6 / 10-10, T.M.A. 3/4", incluye material, mano de obra y todo lo necesario para su correcta ejecucion. | E5: M2 | F5: 3 | H5: 0
A6: Concepto | C6: MC-01U | D6: Construcción de muro de block de 12x20x40 cm junteado con mortero cemento arena proporción 1:4, incluye; plomeado, relleno de huecos en contorno de ventanas a base de concreto F´c= 150 kg/cm2 hecho en obra t.m.a. 3/4", materiales, mano de obra, herramienta, equipo, deberá quedar acabado comun. | E6: M2 | F6: 29.6 | H6: 0
A7: Capítulo | B7: - | D7: ACABADOS | H7: 0
A8: Concepto | C8: AC-03U | D8: Aplanado de yeso en plafones, de 1.5 cm de espesor promedio, a plomo y regla, acabado pulido, reforzada con malla pollera en toda el área incluye: perfilado de aristas y remate en columnas, trabes y muros. | E8: M2 | F8: 18.45 | H8: 0
A9: Concepto | C9: AC-13UA | D9: Aplanado grueso en muros exteriores e interiroes a base de mortero cemento arena 1:4 en un espesor minimo de 1.5 cms , y terminado fino floteado con mortero cemento-arena 1:3 incluye: perfilado de aristas, remates, material, mano de obra y emboquillado. | E9: m2 | F9: 36.66 | H9: 0
A10: Concepto | C10: AC-14U | D10: Pintura vinílica lavable en muros exteriores, interiores y plafond de yeso, incluye: material, limpieza, rebabeado, preparación de la superficie, aplicación de sellador vinílico y dos manos de pintura. | E10: M2 | F10: 36.66 | H10: 0
A11: Concepto | C11: AC-04U | D11: Suministro y colocación de azulejo de 20x30cm de color blanco asentado con cemento crest o similar, boquilla de 2 mm a base de junta crest anti-hongo o similar. Incluye: Herramienta, mano de obra y todo lo necesario para su correcta ejecución. | E11: M2 | F11: 5.67 | H11: 0
A12: Concepto | C12: AC-05U | D12: Suministro y colocación de piso antiderrapante de 20x20cm de color blanco de la marca porcelanite o similar asentado con cemento crest o similar, boquilla de 2 mm a base de junta crest anti-hongo o similar. Incluye: Herramienta, mano de obra y todo lo necesario para su correcta ejecución. | E12: M2 | F12: 8.6 | H12: 0
A13: Capítulo | B13: - | D13: INSTALACIONES ESPECIALES | H13: 0
A14: Concepto | C14: IES-01 | D14: Suministro y colocacion de barra de seguridad de 70 cm, de acero inoxidable; incluye: barra de acero de 70 cm de longuitud, materia, mano de obra y todo lo necesario para su correcta ejecucion. | E14: Pza | F14: 3 | H14: 0
A15: Concepto | C15: IES-02 | D15: Suministro de silla para persona con discapacidad para el area de regadera | E15: Pza | F15: 1 | H15: 0
A16: Capítulo | B16: - | D16: PUERTAS Y VENTANAS | H16: 0
A17: Concepto | C17: PV-20 | D17: Suministro e instalación de puerta de 1.16x2.06 mts, tipo multypanel lisa, fabricado con hoja de acero liso galvanizado cal. 28, con bastidor de madera de pino estufado, terminado en color blanco, relleno de espuma rigida de poliuretano con una densidad de 32 a 34 kg/m3 .,incluye marco metálico de 1.20x2.10m fabricado a base de perfil tubular M-225, chapa tipo palanca con llave para interior acabado en acero inoxidable, dos bisagras de 3", pintura esmalte anticorrosivo color blanco, perfilado del hueco previo a su colocación con mortero cemento-arena 1:4. Herramienta, mano de obra y todo lo necesario para su correcta ejecución. | E17: Pza | F17: 1 | H17: 0
A18: Concepto | C18: PV-05U | D18: Suministro y colocación de ventana corrediza de 0.60x0.40 m a base de perfil de aluminio anodizado natural de 1 1/2" con cristal claro de 3mm con un fijo lateral y un corredizo, incluye: perfilado del hueco, previo a su colocación a base de mortero cemento-arena proporción 1:4. silicon, Herramienta, mano de obra y todo lo necesario para su correcta ejecución. | E18: Pza | F18: 1 | H18: 0
A19: Capítulo | B19: - | D19: INSTALACIONES ELECTRICAS | H19: 0
A20: Concepto | C20: IE-02 | D20: SALIDA ELÉCTRICA PARA TOMACORRIENTE, INCLUYE; CONTACTO DOBLE, TAPA, POLIDUCTO ELÉCTRICO, CABLEADO, RANURADO, SUJECIÓN DE POLIDUCTO, MANO DE OBRA Y EQUIPO. | E20: SAL | F20: 1 | H20: 0
A21: Concepto | C21: IE-03 | D21: SALIDA ELÉCTRICA PARA APAGADOR SENCILLO, INCLUYE: TAPA DE UNA VIA, POLIDUCTO ELÉCTRICO NARANJA REFORZADO DE 1/2", CABLEADO CON CABLE THW #12, RANURADO, RESANADO CON MORTERO CEMENTO-ARENA 1:4, SUJECIÓN DE POLIDUCTO, MANO DE | E21: SAL | F21: 2 | H21: 0
A22: Concepto | C22: IE-05 | D22: SALIDA ELÉCTRICA PARA LÁMPARA, INCLUYE; LA ROSETA DE PORCELANA DE 4"" , CABLEADO CON CABLE THW #12, CAJA OCTOGONAL DE 4"", CON POLIDUCTO NARANJA REFORZADO DE 1/2"", CABLEADO, RANURADO, RESANADO CON MORTERO CEMENTO ARENA 1:4, SUJECIÓN DE POLIDUCTO, MANO DE OBRA Y EQUIPO. | E22: SAL | F22: 2 | H22: 0
A23: Concepto | C23: IE-06 | D23: SUMINISTRO DE FOCO FLUORESCENTE ESPIRAL 23 W. DE LUZ FRIA CON 100 W DE ILUMINACION SEGÚN PROYECTO, | E23: PZA | F23: 2 | H23: 0
A24: Concepto | C24: IE-07U | D24: Alimentación eléctrica de la vivienda existente a la recamara adicional para una distancia maxima de 6 mts el concepto incluye; poliducto naranja reforzado, cable thw #12, prueba del funcionamiento de las instalaciones y todo lo necesario para su correcta ejecucion. | E24: Sal, | F24: 1 | H24: 0
A25: Capítulo | B25: - | D25: INSTALACIONES HIDRÁULICAS Y SANITARIAS | H25: 0
A26: Concepto | C26: IHS-01U | D26: Salidas para instalación sanitaria de 1 1/2", 2" y 4" para ventila, lavabo, sanitario, tarja, lavadero y regadera, a base de tubería de pvc, conexiones, pegamento, ranurado, resanado con mortero cemento-arena 1:4, pendiente, el concepto incluye la conexión de registro a registro con tubería pvc sanitaria de 4", materiales, mano de obra, herramienta y equipo. | E26: Sal | F26: 4 | H26: 0
A27: Concepto | C27: IHS-02U | D27: Salidas para instalación hidráulica para regadera agua fría y caliente, lavabo, sanitario, tarja o zinc y regadera con tubería cpvc de 1/2" marca duralon o similar, el concepto incluye: limpieza, conexiones, ranurado, pendiente, materiales, mano de obra, herramienta, equipo, resanado con mortero cemento-arena 1:4, prueba del correcto funcionamiento de las instalaciones y todo lo necesario para su correcto funcionamiento. | E27: Sal | F27: 4 | H27: 0
A28: Concepto | C28: IHS-03U | D28: Suministro e instalación de sanitario línea económica en color blanco, incluye asiento, pijas, cuello de cera, manguera flexible, llave cromada de 1/2". | E28: Pza | F28: 1 | H28: 0
A29: Concepto | C29: IHS-04U | D29: Suministro e instalación de lavabo marca lamosa o similar línea económica en color blanco, incluye: Llave mezcladora marca helvex o similar línea económica, patas, soportes, manguera flexible, llave cromada de 1/2", cespol bote. | E29: Pza | F29: 1 | H29: 0
A30: Concepto | C30: IHS-05U | D30: Suministro e instalación de regadera línea económica incluye brazo y chapetón. | E30: Pza | F30: 1 | H30: 0
H32: =SUM(H1:H30) -> 0

Sheet Hoja9 (hidden)
A1: Capítulo | B1: + | D1: CIMENTACIÓN | H1: 3397.15 | I1: =+'F-22 CATAL'!G16 -> 0
A2: Capítulo | B2: + | D2: ALBAÑILERIA | H2: 15460.85 | I2: =+'F-22 CATAL'!G21 -> 0
A3: Capítulo | B3: + | D3: ACABADOS | H3: 20630.81 | I3: =+'F-22 CATAL'!G33 -> 0
A4: Capítulo | B4: + | D4: INSTALACIONES ESPECIALES | H4: 10605.33 | I4: =+'F-22 CATAL'!G38 -> 0
A5: Capítulo | B5: + | D5: PUERTAS Y VENTANAS | H5: 5475.59 | I5: =+'F-22 CATAL'!G43:H43 -> 
A6: Capítulo | B6: + | D6: INSTALACIONES ELECTRICAS | H6: 3997.4
A7: Capítulo | B7: + | D7: INSTALACIONES HIDRÁULICAS Y SANITARIAS | H7: 11375.84

Sheet Hoja10 (hidden)
